Workbook

Sheet Умная Т (hidden)
C1: Калужская область | D1: =SUM(Таблица1[Оплачено случаев]) -> 82434 | F1: =SUM(Таблица1[План ДВН, чел.]) -> 64561 | I1: Выполнение плана, % | J1: =ROUND(D1/F1,3) -> 1.277 | P1: =(K24+P24+U24+Z24+AE24+AJ24+AO24+AT24+AY24+BD24+BI24+BN24)/(J24+O24+T24+Y24+AD24+AI24+AN24+AS24+AX24++BC24+BH24+BM24)*1000 -> 2203.891305
C2: Средний тариф ДВН | D2: =P1 -> 2203.891305 | K2: ФАКТ | L2: ПЛАН | O2: ФАКТ | Q2: ПЛАН | T2: ФАКТ | V2: ПЛАН | Y2: ФАКТ | AA2: ПЛАН | AD2: ФАКТ | AF2: ПЛАН | AI2: ФАКТ | AK2: ПЛАН | AN2: ФАКТ | AP2: ПЛАН | AS2: ФАКТ | AU2: ПЛАН | AX2: ФАКТ | AZ2: ПЛАН | BC2: ФАКТ | BE2: ПЛАН | BH2: ФАКТ | BJ2: ПЛАН | BM2: ФАКТ | BO2: ПЛАН
A3: Месяц | B3: Вид | C3: Наименование медицинской организации | D3: Оплачено случаев | E3: Оплачено сумма, тыс.руб. | F3: План ДВН, чел. | G3: Отклонение | H3: % выполнения | J3: 1мес | K3: январь | L3: январь | M3: 2 мес | O3: Февраль | Q3: Февраль | R3: 3 мес | T3: Март | V3: Март | W3: 4 мес | Y3: Апрель | AA3: Апрель | AB3: 5 мес | AD3: Май | AF3: Май | AG3: 6 мес | AI3: Июнь | AK3: Июнь | AL3: 7 мес | AN3: Июль | AP3: Июль | AQ3: 8 мес | AS3: Август | AU3: Август | AV3: 9 мес | AX3: Сентябрь | AZ3: Сентябрь | BA3: 10 мес | BC3: Октябрь | BE3: Октябрь | BF3: 11 мес | BH3: Ноябрь | BJ3: Ноябрь | BK3: 12 мес | BM3: Декабрь | BO3: Декабрь
A4: Январь | B4: ДВН | C4: ЦМБ № 1 | D4: =J4 -> 954 | E4: =K4 -> 2086.86005 | F4: =L4 -> 906 | G4: =Таблица1[[#This Row],[Оплачено случаев]]-Таблица1[[#This Row],[План ДВН, чел.]] -> 48 | H4: =ROUND(Таблица1[[#This Row],[Оплачено случаев]]/Таблица1[[#This Row],[План ДВН, чел.]]*100,1) -> 105.3 | J4: 954 | K4: 2086.86005 | L4: 906 | M4: =J4+O4 -> 2393 | N4: =K4+P4 -> 5141.41065 | O4: 1439 | P4: 3054.5506 | Q4: 1125 | R4: =M4+T4 -> 3999 | S4: =N4+U4 -> 8684.51162 | T4: 1606 | U4: 3543.10097 | V4: 1107 | W4: =R4+Y4 -> 3999 | X4: =S4+Z4 -> 8684.51162 | AB4: =W4+AD4 -> 3999 | AC4: =X4+AE4 -> 8684.51162 | AG4: =AB4+AI4 -> 3999 | AH4: =AC4+AJ4 -> 8684.51162 | AL4: =AG4+AN4 -> 3999 | AM4: =AH4+AO4 -> 8684.51162 | AQ4: =AL4+AS4 -> 3999 | AR4: =AM4+AT4 -> 8684.51162 | AV4: =AX4+AQ4 -> 3999 | AW4: =AR4+AY4 -> 8684.51162 | BA4: =AV4+BC4 -> 3999 | BB4: =AW4+BD4 -> 8684.51162 | BF4: =BH4+BA4 -> 3999 | BG4: =BB4+BI4 -> 8684.51162 | BK4: =BF4+BM4 -> 3999 | BL4: =BG4+BN4 -> 8684.51162 | BO4: 0
A5: Январь | B5: ДВН | C5: ЦМБ № 2 | D5: =J5 -> 2438 | E5: =K5 -> 9013.73048 | F5: =L5 -> 1838 | G5: =Таблица1[[#This Row],[Оплачено случаев]]-Таблица1[[#This Row],[План ДВН, чел.]] -> 600 | H5: =ROUND(Таблица1[[#This Row],[Оплачено случаев]]/Таблица1[[#This Row],[План ДВН, чел.]]*100,1) -> 132.6 | J5: 2438 | K5: 9013.73048 | L5: 1838 | M5: =J5+O5 -> 4644 | N5: 16189.03164 | O5: 2206 | P5: 7175.30116 | Q5: 2071 | R5: =M5+T5 -> 6575 | S5: =N5+U5 -> 21314.6217 | T5: 1931 | U5: 5125.59006 | V5: 2065 | W5: =R5+Y5 -> 6575 | X5: =S5+Z5 -> 21314.6217 | AB5: =W5+AD5 -> 6575 | AC5: =X5+AE5 -> 21314.6217 | AG5: =AB5+AI5 -> 6575 | AH5: =AC5+AJ5 -> 21314.6217 | AL5: =AG5+AN5 -> 6575 | AM5: =AH5+AO5 -> 21314.6217 | AQ5: =AL5+AS5 -> 6575 | AR5: =AM5+AT5 -> 21314.6217 | AV5: =AX5+AQ5 -> 6575 | AW5: =AR5+AY5 -> 21314.6217 | BA5: =AV5+BC5 -> 6575 | BB5: =AW5+BD5 -> 21314.6217 | BF5: =BH5+BA5 -> 6575 | BG5: =BB5+BI5 -> 21314.6217 | BK5: =BF5+BM5 -> 6575 | BL5: =BG5+BN5 -> 21314.6217 | BO5: 0
A6: Январь | B6: ДВН | C6: ЦМБ № 3 | D6: 840 | E6: 1805.84732 | F6: 515 | G6: =Таблица1[[#This Row],[Оплачено случаев]]-Таблица1[[#This Row],[План ДВН, чел.]] -> 325 | H6: =ROUND(Таблица1[[#This Row],[Оплачено случаев]]/Таблица1[[#This Row],[План ДВН, чел.]]*100,1) -> 163.1 | J6: 840 | K6: 1805.84732 | L6: 515 | M6: 1768 | N6: 3780.80814 | O6: 928 | P6: 1974.96082 | Q6: 515 | R6: 2295 | S6: 4877.5778 | T6: 527 | U6: 1096.76966 | V6: 852 | W6: 2295 | X6: 4877.5778 | AB6: 2295 | AC6: 4877.5778 | AG6: 2295 | AH6: 4877.5778 | AL6: 2295 | AM6: 4877.5778 | AQ6: 2295 | AR6: 4877.5778 | AV6: 2295 | AW6: 4877.5778 | BA6: 2295 | BB6: 4877.5778 | BF6: 2295 | BG6: 4877.5778 | BK6: 2295 | BL6: 4877.5778 | BO6: 0
A7: Январь | B7: ДВН | C7: ЦМБ № 4 | D7: 279 | E7: 503.0878 | F7: 279 | G7: =Таблица1[[#This Row],[Оплачено случаев]]-Таблица1[[#This Row],[План ДВН, чел.]] -> 0 | H7: =ROUND(Таблица1[[#This Row],[Оплачено случаев]]/Таблица1[[#This Row],[План ДВН, чел.]]*100,1) -> 100 | J7: 279 | K7: 503.0878 | L7: 279 | M7: 598 | N7: 1057.87663 | O7: 319 | P7: 554.78883 | Q7: 383 | R7: 923 | S7: 1667.43412 | T7: 325 | U7: 609.55749 | V7: 383 | W7: 923 | X7: 1667.43412 | AB7: 923 | AC7: 1667.43412 | AG7: 923 | AH7: 1667.43412 | AL7: 923 | AM7: 1667.43412 | AQ7: 923 | AR7: 1667.43412 | AV7: 923 | AW7: 1667.43412 | BA7: 923 | BB7: 1667.43412 | BF7: 923 | BG7: 1667.43412 | BK7: 923 | BL7: 1667.43412 | BO7: 0
A8: Январь | B8: ДВН | C8: ЦМБ № 5 | D8: 121 | E8: 365.04377 | F8: 496 | G8: =Таблица1[[#This Row],[Оплачено случаев]]-Таблица1[[#This Row],[План ДВН, чел.]] -> -375 | H8: =ROUND(Таблица1[[#This Row],[Оплачено случаев]]/Таблица1[[#This Row],[План ДВН, чел.]]*100,1) -> 24.4 | J8: 121 | K8: 365.04377 | L8: 496 | M8: 1881 | N8: 4967.07155 | O8: 1760 | P8: 4602.02778 | Q8: 946 | R8: 3475 | S8: 8669.57232 | T8: 1594 | U8: 3702.50077 | V8: 973 | W8: 3475 | X8: 8669.57232 | AB8: 3475 | AC8: 8669.57232 | AG8: 3475 | AH8: 8669.57232 | AL8: 3475 | AM8: 8669.57232 | AQ8: 3475 | AR8: 8669.57232 | AV8: 3475 | AW8: 8669.57232 | BA8: 3475 | BB8: 8669.57232 | BF8: 3475 | BG8: 8669.57232 | BK8: 3475 | BL8: 8669.57232 | BO8: 0
A9: Январь | B9: ДВН | C9: ЦМБ № 6 | D9: 1497 | E9: 3564.85419 | F9: 1000 | G9: =Таблица1[[#This Row],[Оплачено случаев]]-Таблица1[[#This Row],[План ДВН, чел.]] -> 497 | H9: =ROUND(Таблица1[[#This Row],[Оплачено случаев]]/Таблица1[[#This Row],[План ДВН, чел.]]*100,1) -> 149.7 | J9: 1497 | K9: 3564.85419 | L9: 1000 | M9: 3557 | N9: 8518.97565 | O9: 2060 | P9: 4954.12146 | Q9: 1250 | R9: 5675 | S9: 13518.17434 | T9: 2118 | U9: 4999.19869 | V9: 1500 | W9: 5675 | X9: 13518.17434 | AB9: 5675 | AC9: 13518.17434 | AG9: 5675 | AH9: 13518.17434 | AL9: 5675 | AM9: 13518.17434 | AQ9: 5675 | AR9: 13518.17434 | AV9: 5675 | AW9: 13518.17434 | BA9: 5675 | BB9: 13518.17434 | BF9: 5675 | BG9: 13518.17434 | BK9: 5675 | BL9: 13518.17434 | BO9: 0
A10: Январь | B10: ДВН | C10: КГБ № 5 | D10: 3211 | E10: 6391.29645 | F10: 2667 | G10: =Таблица1[[#This Row],[Оплачено случаев]]-Таблица1[[#This Row],[План ДВН, чел.]] -> 544 | H10: =ROUND(Таблица1[[#This Row],[Оплачено случаев]]/Таблица1[[#This Row],[План ДВН, чел.]]*100,1) -> 120.4 | J10: 3211 | K10: 6391.29645 | L10: 2667 | M10: 7243 | N10: 14252.88854 | O10: 4032 | P10: 7861.59209 | Q10: 3900 | R10: 11299 | S10: 22350.30357 | T10: 4056 | U10: 8097.41503 | V10: 3900 | W10: 11299 | X10: 22350.30357 | AB10: 11299 | AC10: 22350.30357 | AG10: 11299 | AH10: 22350.30357 | AL10: 11299 | AM10: 22350.30357 | AQ10: 11299 | AR10: 22350.30357 | AV10: 11299 | AW10: 22350.30357 | BA10: 11299 | BB10: 22350.30357 | BF10: 11299 | BG10: 22350.30357 | BK10: 11299 | BL10: 22350.30357 | BO10: 0
A11: Январь | B11: ДВН | C11: КГКБ № 4 | D11: 4933 | E11: 8842.57438 | F11: 3193 | G11: =Таблица1[[#This Row],[Оплачено случаев]]-Таблица1[[#This Row],[План ДВН, чел.]] -> 1740 | H11: =ROUND(Таблица1[[#This Row],[Оплачено случаев]]/Таблица1[[#This Row],[План ДВН, чел.]]*100,1) -> 154.5 | J11: 4933 | K11: 8842.57438 | L11: 3193 | M11: 9380 | N11: 17554.98323 | O11: 4447 | P11: 8712.40885 | Q11: 3193 | R11: 13609 | S11: 25795.12923 | T11: 4229 | U11: 8240.146 | V11: 3193 | W11: 13609 | X11: 25795.12923 | AB11: 13609 | AC11: 25795.12923 | AG11: 13609 | AH11: 25795.12923 | AL11: 13609 | AM11: 25795.12923 | AQ11: 13609 | AR11: 25795.12923 | AV11: 13609 | AW11: 25795.12923 | BA11: 13609 | BB11: 25795.12923 | BF11: 13609 | BG11: 25795.12923 | BK11: 13609 | BL11: 25795.12923 | BO11: 0
A12: Январь | B12: ДВН | C12: Городская поликлиника | D12: 2037 | E12: 2471.00314 | F12: 1449 | G12: =Таблица1[[#This Row],[Оплачено случаев]]-Таблица1[[#This Row],[План ДВН, чел.]] -> 588 | H12: =ROUND(Таблица1[[#This Row],[Оплачено случаев]]/Таблица1[[#This Row],[План ДВН, чел.]]*100,1) -> 140.6 | J12: 2037 | K12: 2471.00314 | L12: 1449 | M12: 4626 | N12: 6294.73615 | O12: 2589 | P12: 3823.73301 | Q12: 1506 | R12: 6765 | S12: 9704.80251 | T12: 2139 | U12: 3410.06636 | V12: 1506 | W12: 6765 | X12: 9704.80251 | AB12: 6765 | AC12: 9704.80251 | AG12: 6765 | AH12: 9704.80251 | AL12: 6765 | AM12: 9704.80251 | AQ12: 6765 | AR12: 9704.80251 | AV12: 6765 | AW12: 9704.80251 | BA12: 6765 | BB12: 9704.80251 | BF12: 6765 | BG12: 9704.80251 | BK12: 6765 | BL12: 9704.80251 | BO12: 0
A13: Январь | B13: ДВН | C13: МСЧ № 1 г. Калуги | D13: 102 | E13: 201.66631 | F13: 120 | G13: =Таблица1[[#This Row],[Оплачено случаев]]-Таблица1[[#This Row],[План ДВН, чел.]] -> -18 | H13: =ROUND(Таблица1[[#This Row],[Оплачено случаев]]/Таблица1[[#This Row],[План ДВН, чел.]]*100,1) -> 85 | J13: 102 | K13: 201.66631 | L13: 120 | M13: 360 | N13: 719.43679 | O13: 258 | P13: 517.77048 | Q13: 200 | R13: 756 | S13: 1601.56058 | T13: 396 | U13: 882.12379 | V13: 200 | W13: 756 | X13: 1601.56058 | AB13: 756 | AC13: 1601.56058 | AG13: 756 | AH13: 1601.56058 | AL13: 756 | AM13: 1601.56058 | AQ13: 756 | AR13: 1601.56058 | AV13: 756 | AW13: 1601.56058 | BA13: 756 | BB13: 1601.56058 | BF13: 756 | BG13: 1601.56058 | BK13: 756 | BL13: 1601.56058 | BO13: 0
A14: Январь | B14: ДВН | C14: МСЧ № 2 г. Калуги | D14: 25 | E14: 30.76565 | F14: 25 | G14: =Таблица1[[#This Row],[Оплачено случаев]]-Таблица1[[#This Row],[План ДВН, чел.]] -> 0 | H14: =ROUND(Таблица1[[#This Row],[Оплачено случаев]]/Таблица1[[#This Row],[План ДВН, чел.]]*100,1) -> 100 | J14: 25 | K14: 30.76565 | L14: 25 | M14: 45 | N14: 60.92929 | O14: 20 | P14: 30.16364 | Q14: 12 | R14: 102 | S14: 155.99223 | T14: 57 | U14: 95.06294 | V14: 12 | W14: 102 | X14: 155.99223 | AB14: 102 | AC14: 155.99223 | AG14: 102 | AH14: 155.99223 | AL14: 102 | AM14: 155.99223 | AQ14: 102 | AR14: 155.99223 | AV14: 102 | AW14: 155.99223 | BA14: 102 | BB14: 155.99223 | BF14: 102 | BG14: 155.99223 | BK14: 102 | BL14: 155.99223 | BO14: 0
A15: Январь | B15: ДВН | C15: МСЧ МВД | D15: 0 | E15: 0 | F15: 0 | G15: =Таблица1[[#This Row],[Оплачено случаев]]-Таблица1[[#This Row],[План ДВН, чел.]] -> 0 | H15: =ROUND(Таблица1[[#This Row],[Оплачено случаев]]/Таблица1[[#This Row],[План ДВН, чел.]]*100,1) ->  | J15: 0 | K15: 0 | M15: 0 | N15: 0 | P15: 0 | R15: 0 | S15: 0 | U15: 0 | W15: 0 | X15: 0 | AB15: 0 | AC15: 0 | AG15: 0 | AH15: 0 | AL15: 0 | AM15: 0 | AQ15: 0 | AR15: 0 | AV15: 0 | AW15: 0 | BA15: 0 | BB15: 0 | BF15: 0 | BG15: 0 | BK15: 0 | BL15: 0 | BO15: 0
A16: Январь | B16: ДВН | C16: ЧУЗ "Больница "РЖД - Медицина" | D16: 181 | E16: 388.774 | F16: 176 | G16: =Таблица1[[#This Row],[Оплачено случаев]]-Таблица1[[#This Row],[План ДВН, чел.]] -> 5 | H16: =ROUND(Таблица1[[#This Row],[Оплачено случаев]]/Таблица1[[#This Row],[План ДВН, чел.]]*100,1) -> 102.8 | J16: 181 | K16: 388.774 | L16: 176 | M16: 471 | N16: 1025.05397 | O16: 290 | P16: 636.27997 | Q16: 195 | R16: 727 | S16: 1588.48706 | T16: 256 | U16: 563.43309 | V16: 195 | W16: 727 | X16: 1588.48706 | AB16: 727 | AC16: 1588.48706 | AG16: 727 | AH16: 1588.48706 | AL16: 727 | AM16: 1588.48706 | AQ16: 727 | AR16: 1588.48706 | AV16: 727 | AW16: 1588.48706 | BA16: 727 | BB16: 1588.48706 | BF16: 727 | BG16: 1588.48706 | BK16: 727 | BL16: 1588.48706 | BO16: 0
A17: Январь | B17: ДВН | C17: КБ № 8 ФМБА | D17: 2827 | E17: 6250.97567 | F17: 2100 | G17: =Таблица1[[#This Row],[Оплачено случаев]]-Таблица1[[#This Row],[План ДВН, чел.]] -> 727 | H17: =ROUND(Таблица1[[#This Row],[Оплачено случаев]]/Таблица1[[#This Row],[План ДВН, чел.]]*100,1) -> 134.6 | J17: 2827 | K17: 6250.97567 | L17: 2100 | M17: 8051 | N17: 17991.07648 | O17: 5224 | P17: 11740.10081 | Q17: 3474 | R17: 12636 | S17: 28262.43413 | T17: 4585 | U17: 10271.35765 | V17: 4500 | W17: 12636 | X17: 28262.43413 | AB17: 12636 | AC17: 28262.43413 | AG17: 12636 | AH17: 28262.43413 | AL17: 12636 | AM17: 28262.43413 | AQ17: 12636 | AR17: 28262.43413 | AV17: 12636 | AW17: 28262.43413 | BA17: 12636 | BB17: 28262.43413 | BF17: 12636 | BG17: 28262.43413 | BK17: 12636 | BL17: 28262.43413 | BO17: 0
A18: Январь | B18: ДВН | C18: ЦРБ Бабынинского района | D18: 355 | E18: 747.80539 | F18: 263 | G18: =Таблица1[[#This Row],[Оплачено случаев]]-Таблица1[[#This Row],[План ДВН, чел.]] -> 92 | H18: =ROUND(Таблица1[[#This Row],[Оплачено случаев]]/Таблица1[[#This Row],[План ДВН, чел.]]*100,1) -> 135 | J18: 355 | K18: 747.80539 | L18: 263 | M18: 886 | N18: 1826.41887 | O18: 531 | P18: 1078.61348 | Q18: 464 | R18: 1496 | S18: 3065.86301 | T18: 610 | U18: 1239.44414 | V18: 464 | W18: 1496 | X18: 3065.86301 | AB18: 1496 | AC18: 3065.86301 | AG18: 1496 | AH18: 3065.86301 | AL18: 1496 | AM18: 3065.86301 | AQ18: 1496 | AR18: 3065.86301 | AV18: 1496 | AW18: 3065.86301 | BA18: 1496 | BB18: 3065.86301 | BF18: 1496 | BG18: 3065.86301 | BK18: 1496 | BL18: 3065.86301 | BO18: 0
A19: Январь | B19: ДВН | C19: ЦРБ Боровского района | D19: 1850 | E19: 5471.50714 | F19: 1280 | G19: =Таблица1[[#This Row],[Оплачено случаев]]-Таблица1[[#This Row],[План ДВН, чел.]] -> 570 | H19: =ROUND(Таблица1[[#This Row],[Оплачено случаев]]/Таблица1[[#This Row],[План ДВН, чел.]]*100,1) -> 144.5 | J19: 1850 | K19: 5471.50714 | L19: 1280 | M19: 3984 | N19: 11718.92124 | O19: 2134 | P19: 6247.4141 | Q19: 1280 | R19: 6034 | S19: 17240.22831 | T19: 2050 | U19: 5521.30707 | V19: 1280 | W19: 6034 | X19: 17240.22831 | AB19: 6034 | AC19: 17240.22831 | AG19: 6034 | AH19: 17240.22831 | AL19: 6034 | AM19: 17240.22831 | AQ19: 6034 | AR19: 17240.22831 | AV19: 6034 | AW19: 17240.22831 | BA19: 6034 | BB19: 17240.22831 | BF19: 6034 | BG19: 17240.22831 | BK19: 6034 | BL19: 17240.22831 | BO19: 0
A20: Январь | B20: ДВН | C20: ЦРБ Жуковского района | D20: 385 | E20: 1005.86962 | F20: 350 | G20: =Таблица1[[#This Row],[Оплачено случаев]]-Таблица1[[#This Row],[План ДВН, чел.]] -> 35 | H20: =ROUND(Таблица1[[#This Row],[Оплачено случаев]]/Таблица1[[#This Row],[План ДВН, чел.]]*100,1) -> 110 | J20: 385 | K20: 1005.86962 | L20: 350 | M20: 719 | N20: 1880.21076 | O20: 334 | P20: 874.34114 | Q20: 450 | R20: 1382 | S20: 3486.89271 | T20: 663 | U20: 1606.68195 | V20: 490 | W20: 1382 | X20: 3486.89271 | AB20: 1382 | AC20: 3486.89271 | AG20: 1382 | AH20: 3486.89271 | AL20: 1382 | AM20: 3486.89271 | AQ20: 1382 | AR20: 3486.89271 | AV20: 1382 | AW20: 3486.89271 | BA20: 1382 | BB20: 3486.89271 | BF20: 1382 | BG20: 3486.89271 | BK20: 1382 | BL20: 3486.89271 | BO20: 0
A21: Январь | B21: ДВН | C21: ГП "Город Кременки" | D21: 143 | E21: 274.63224 | F21: 208 | G21: =Таблица1[[#This Row],[Оплачено случаев]]-Таблица1[[#This Row],[План ДВН, чел.]] -> -65 | H21: =ROUND(Таблица1[[#This Row],[Оплачено случаев]]/Таблица1[[#This Row],[План ДВН, чел.]]*100,1) -> 68.8 | J21: 143 | K21: 274.63224 | L21: 208 | M21: 350 | N21: 658.35435 | O21: 207 | P21: 383.72211 | Q21: 230 | R21: 563 | S21: 1053.75445 | T21: 213 | U21: 395.4001 | V21: 280 | W21: 563 | X21: 1053.75445 | AB21: 563 | AC21: 1053.75445 | AG21: 563 | AH21: 1053.75445 | AL21: 563 | AM21: 1053.75445 | AQ21: 563 | AR21: 1053.75445 | AV21: 563 | AW21: 1053.75445 | BA21: 563 | BB21: 1053.75445 | BF21: 563 | BG21: 1053.75445 | BK21: 563 | BL21: 1053.75445 | BO21: 0
A22: Январь | B22: ДВН | C22: ЦРБ Малоярославецкого района | D22: 1258 | E22: 2814.98795 | F22: 964 | G22: =Таблица1[[#This Row],[Оплачено случаев]]-Таблица1[[#This Row],[План ДВН, чел.]] -> 294 | H22: =ROUND(Таблица1[[#This Row],[Оплачено случаев]]/Таблица1[[#This Row],[План ДВН, чел.]]*100,1) -> 130.5 | J22: 1258 | K22: 2814.98795 | L22: 964 | M22: 2448 | N22: 5279.63161 | O22: 1190 | P22: 2464.64366 | Q22: 964 | R22: 3492 | S22: 7407.14081 | T22: 1044 | U22: 2127.5092 | V22: 964 | W22: 3492 | X22: 7407.14081 | AB22: 3492 | AC22: 7407.14081 | AG22: 3492 | AH22: 7407.14081 | AL22: 3492 | AM22: 7407.14081 | AQ22: 3492 | AR22: 7407.14081 | AV22: 3492 | AW22: 7407.14081 | BA22: 3492 | BB22: 7407.14081 | BF22: 3492 | BG22: 7407.14081 | BK22: 3492 | BL22: 7407.14081 | BO22: 0
A23: Январь | B23: ДВН | C23: ЦРБ Тарусского района | D23: 118 | E23: 226.10288 | F23: 98 | G23: =Таблица1[[#This Row],[Оплачено случаев]]-Таблица1[[#This Row],[План ДВН, чел.]] -> 20 | H23: =ROUND(Таблица1[[#This Row],[Оплачено случаев]]/Таблица1[[#This Row],[План ДВН, чел.]]*100,1) -> 120.4 | J23: 118 | K23: 226.10288 | L23: 98 | M23: 253 | N23: 489.30398 | O23: 135 | P23: 263.2011 | Q23: 250 | R23: 631 | S23: 1231.09535 | T23: 378 | U23: 741.79137 | V23: 362 | W23: 631 | X23: 1231.09535 | AB23: 631 | AC23: 1231.09535 | AG23: 631 | AH23: 1231.09535 | AL23: 631 | AM23: 1231.09535 | AQ23: 631 | AR23: 1231.09535 | AV23: 631 | AW23: 1231.09535 | BA23: 631 | BB23: 1231.09535 | BF23: 631 | BG23: 1231.09535 | BK23: 631 | BL23: 1231.09535 | BO23: 0
A24: Февраль | B24: ДВН | C24: ЦМБ № 1 | D24: =O4 -> 1439 | E24: =P4 -> 3054.5506 | F24: =Q4 -> 1125 | G24: =Таблица1[[#This Row],[Оплачено случаев]]-Таблица1[[#This Row],[План ДВН, чел.]] -> 314 | H24: =ROUND(Таблица1[[#This Row],[Оплачено случаев]]/Таблица1[[#This Row],[План ДВН, чел.]]*100,1) -> 127.9 | J24: =SUM(J4:J23) -> 23554 | K24: 52457.38443 | L24: 17927 | M24: 53657 | N24: 119407.1195 | O24: 30103 | P24: 66949.73509 | Q24: 22408 | R24: 82434 | S24: 181675.5759 | T24: 28777 | U24: 62268.45633 | V24: 24226 | W24: 82434 | X24: 181675.5759 | Y24: 0 | Z24: 0 | AA24: 0 | AB24: 82434 | AC24: 181675.5759 | AD24: 0 | AE24: 0 | AF24: 0 | AG24: 82434 | AH24: 181675.5759 | AI24: 0 | AJ24: 0 | AK24: 0 | AL24: 82434 | AM24: 181675.5759 | AN24: 0 | AO24: 0 | AP24: =SUM(AP4:AP23) -> 0 | AQ24: =SUM(AQ4:AQ23) -> 82434 | AR24: 181675.5759 | AS24: 0 | AT24: 0 | AU24: 0 | AV24: 82434 | AW24: 181675.5759 | BA24: 82434 | BB24: 181675.5759 | BC24: 0 | BD24: 0 | BE24: 0 | BF24: 82434 | BG24: 181675.5759 | BH24: 0 | BI24: 0 | BJ24: 0 | BK24: 82434 | BL24: 181675.5759 | BM24: 0 | BN24: 0 | BO24: 0
A25: Февраль | B25: ДВН | C25: ЦМБ № 2 | D25: 2206 | E25: 7175.30116 | F25: 2071 | G25: =Таблица1[[#This Row],[Оплачено случаев]]-Таблица1[[#This Row],[План ДВН, чел.]] -> 135 | H25: =ROUND(Таблица1[[#This Row],[Оплачено случаев]]/Таблица1[[#This Row],[План ДВН, чел.]]*100,1) -> 106.5
A26: Февраль | B26: ДВН | C26: ЦМБ № 3 | D26: 928 | E26: 1974.96082 | F26: 515 | G26: =Таблица1[[#This Row],[Оплачено случаев]]-Таблица1[[#This Row],[План ДВН, чел.]] -> 413 | H26: =ROUND(Таблица1[[#This Row],[Оплачено случаев]]/Таблица1[[#This Row],[План ДВН, чел.]]*100,1) -> 180.2
A27: Февраль | B27: ДВН | C27: ЦМБ № 4 | D27: 319 | E27: 554.78883 | F27: 383 | G27: =Таблица1[[#This Row],[Оплачено случаев]]-Таблица1[[#This Row],[План ДВН, чел.]] -> -64 | H27: =ROUND(Таблица1[[#This Row],[Оплачено случаев]]/Таблица1[[#This Row],[План ДВН, чел.]]*100,1) -> 83.3
A28: Февраль | B28: ДВН | C28: ЦМБ № 5 | D28: 1760 | E28: 4602.02778 | F28: 946 | G28: =Таблица1[[#This Row],[Оплачено случаев]]-Таблица1[[#This Row],[План ДВН, чел.]] -> 814 | H28: =ROUND(Таблица1[[#This Row],[Оплачено случаев]]/Таблица1[[#This Row],[План ДВН, чел.]]*100,1) -> 186
A29: Февраль | B29: ДВН | C29: ЦМБ № 6 | D29: 2060 | E29: 4954.12146 | F29: 1250 | G29: =Таблица1[[#This Row],[Оплачено случаев]]-Таблица1[[#This Row],[План ДВН, чел.]] -> 810 | H29: =ROUND(Таблица1[[#This Row],[Оплачено случаев]]/Таблица1[[#This Row],[План ДВН, чел.]]*100,1) -> 164.8
A30: Февраль | B30: ДВН | C30: КГБ № 5 | D30: 4032 | E30: 7861.59209 | F30: 3900 | G30: =Таблица1[[#This Row],[Оплачено случаев]]-Таблица1[[#This Row],[План ДВН, чел.]] -> 132 | H30: =ROUND(Таблица1[[#This Row],[Оплачено случаев]]/Таблица1[[#This Row],[План ДВН, чел.]]*100,1) -> 103.4
A31: Февраль | B31: ДВН | C31: КГКБ № 4 | D31: 4447 | E31: 8712.40885 | F31: 3193 | G31: =Таблица1[[#This Row],[Оплачено случаев]]-Таблица1[[#This Row],[План ДВН, чел.]] -> 1254 | H31: =ROUND(Таблица1[[#This Row],[Оплачено случаев]]/Таблица1[[#This Row],[План ДВН, чел.]]*100,1) -> 139.3
A32: Февраль | B32: ДВН | C32: Городская поликлиника | D32: 2589 | E32: 3823.73301 | F32: 1506 | G32: =Таблица1[[#This Row],[Оплачено случаев]]-Таблица1[[#This Row],[План ДВН, чел.]] -> 1083 | H32: =ROUND(Таблица1[[#This Row],[Оплачено случаев]]/Таблица1[[#This Row],[План ДВН, чел.]]*100,1) -> 171.9
A33: Февраль | B33: ДВН | C33: МСЧ № 1 г. Калуги | D33: 258 | E33: 517.77048 | F33: 200 | G33: =Таблица1[[#This Row],[Оплачено случаев]]-Таблица1[[#This Row],[План ДВН, чел.]] -> 58 | H33: =ROUND(Таблица1[[#This Row],[Оплачено случаев]]/Таблица1[[#This Row],[План ДВН, чел.]]*100,1) -> 129
A34: Февраль | B34: ДВН | C34: МСЧ № 2 г. Калуги | D34: 20 | E34: 30.16364 | F34: 12 | G34: =Таблица1[[#This Row],[Оплачено случаев]]-Таблица1[[#This Row],[План ДВН, чел.]] -> 8 | H34: =ROUND(Таблица1[[#This Row],[Оплачено случаев]]/Таблица1[[#This Row],[План ДВН, чел.]]*100,1) -> 166.7
A35: Февраль | B35: ДВН | C35: МСЧ МВД | D35: 0 | E35: 0 | F35: 0 | G35: =Таблица1[[#This Row],[Оплачено случаев]]-Таблица1[[#This Row],[План ДВН, чел.]] -> 0 | H35: =ROUND(Таблица1[[#This Row],[Оплачено случаев]]/Таблица1[[#This Row],[План ДВН, чел.]]*100,1) -> 
A36: Февраль | B36: ДВН | C36: ЧУЗ "Больница "РЖД - Медицина" | D36: 290 | E36: 636.27997 | F36: 195 | G36: =Таблица1[[#This Row],[Оплачено случаев]]-Таблица1[[#This Row],[План ДВН, чел.]] -> 95 | H36: =ROUND(Таблица1[[#This Row],[Оплачено случаев]]/Таблица1[[#This Row],[План ДВН, чел.]]*100,1) -> 148.7
A37: Февраль | B37: ДВН | C37: КБ № 8 ФМБА | D37: 5224 | E37: 11740.10081 | F37: 3474 | G37: =Таблица1[[#This Row],[Оплачено случаев]]-Таблица1[[#This Row],[План ДВН, чел.]] -> 1750 | H37: =ROUND(Таблица1[[#This Row],[Оплачено случаев]]/Таблица1[[#This Row],[План ДВН, чел.]]*100,1) -> 150.4
A38: Февраль | B38: ДВН | C38: ЦРБ Бабынинского района | D38: 531 | E38: 1078.61348 | F38: 464 | G38: =Таблица1[[#This Row],[Оплачено случаев]]-Таблица1[[#This Row],[План ДВН, чел.]] -> 67 | H38: =ROUND(Таблица1[[#This Row],[Оплачено случаев]]/Таблица1[[#This Row],[План ДВН, чел.]]*100,1) -> 114.4
A39: Февраль | B39: ДВН | C39: ЦРБ Боровского района | D39: 2134 | E39: 6247.4141 | F39: 1280 | G39: =Таблица1[[#This Row],[Оплачено случаев]]-Таблица1[[#This Row],[План ДВН, чел.]] -> 854 | H39: =ROUND(Таблица1[[#This Row],[Оплачено случаев]]/Таблица1[[#This Row],[План ДВН, чел.]]*100,1) -> 166.7
A40: Февраль | B40: ДВН | C40: ЦРБ Жуковского района | D40: 334 | E40: 874.34114 | F40: 450 | G40: =Таблица1[[#This Row],[Оплачено случаев]]-Таблица1[[#This Row],[План ДВН, чел.]] -> -116 | H40: =ROUND(Таблица1[[#This Row],[Оплачено случаев]]/Таблица1[[#This Row],[План ДВН, чел.]]*100,1) -> 74.2
A41: Февраль | B41: ДВН | C41: ГП "Город Кременки" | D41: 207 | E41: 383.72211 | F41: 230 | G41: =Таблица1[[#This Row],[Оплачено случаев]]-Таблица1[[#This Row],[План ДВН, чел.]] -> -23 | H41: =ROUND(Таблица1[[#This Row],[Оплачено случаев]]/Таблица1[[#This Row],[План ДВН, чел.]]*100,1) -> 90
A42: Февраль | B42: ДВН | C42: ЦРБ Малоярославецкого района | D42: 1190 | E42: 2464.64366 | F42: 964 | G42: =Таблица1[[#This Row],[Оплачено случаев]]-Таблица1[[#This Row],[План ДВН, чел.]] -> 226 | H42: =ROUND(Таблица1[[#This Row],[Оплачено случаев]]/Таблица1[[#This Row],[План ДВН, чел.]]*100,1) -> 123.4
A43: Февраль | B43: ДВН | C43: ЦРБ Тарусского района | D43: 135 | E43: 263.2011 | F43: 250 | G43: =Таблица1[[#This Row],[Оплачено случаев]]-Таблица1[[#This Row],[План ДВН, чел.]] -> -115 | H43: =ROUND(Таблица1[[#This Row],[Оплачено случаев]]/Таблица1[[#This Row],[План ДВН, чел.]]*100,1) -> 54
A44: Март | B44: ДВН | C44: ЦМБ № 1 | D44: =T4 -> 1606 | E44: =U4 -> 3543.10097 | F44: =V4 -> 1107 | G44: =Таблица1[[#This Row],[Оплачено случаев]]-Таблица1[[#This Row],[План ДВН, чел.]] -> 499 | H44: =ROUND(Таблица1[[#This Row],[Оплачено случаев]]/Таблица1[[#This Row],[План ДВН, чел.]]*100,1) -> 145.1
A45: Март | B45: ДВН | C45: ЦМБ № 2 | D45: 1931 | E45: 5125.59006 | F45: 2065 | G45: =Таблица1[[#This Row],[Оплачено случаев]]-Таблица1[[#This Row],[План ДВН, чел.]] -> -134 | H45: =ROUND(Таблица1[[#This Row],[Оплачено случаев]]/Таблица1[[#This Row],[План ДВН, чел.]]*100,1) -> 93.5
A46: Март | B46: ДВН | C46: ЦМБ № 3 | D46: 527 | E46: 1096.76966 | F46: 852 | G46: =Таблица1[[#This Row],[Оплачено случаев]]-Таблица1[[#This Row],[План ДВН, чел.]] -> -325 | H46: =ROUND(Таблица1[[#This Row],[Оплачено случаев]]/Таблица1[[#This Row],[План ДВН, чел.]]*100,1) -> 61.9
A47: Март | B47: ДВН | C47: ЦМБ № 4 | D47: 325 | E47: 609.55749 | F47: 383 | G47: =Таблица1[[#This Row],[Оплачено случаев]]-Таблица1[[#This Row],[План ДВН, чел.]] -> -58 | H47: =ROUND(Таблица1[[#This Row],[Оплачено случаев]]/Таблица1[[#This Row],[План ДВН, чел.]]*100,1) -> 84.9
A48: Март | B48: ДВН | C48: ЦМБ № 5 | D48: 1594 | E48: 3702.50077 | F48: 973 | G48: =Таблица1[[#This Row],[Оплачено случаев]]-Таблица1[[#This Row],[План ДВН, чел.]] -> 621 | H48: =ROUND(Таблица1[[#This Row],[Оплачено случаев]]/Таблица1[[#This Row],[План ДВН, чел.]]*100,1) -> 163.8
A49: Март | B49: ДВН | C49: ЦМБ № 6 | D49: 2118 | E49: 4999.19869 | F49: 1500 | G49: =Таблица1[[#This Row],[Оплачено случаев]]-Таблица1[[#This Row],[План ДВН, чел.]] -> 618 | H49: =ROUND(Таблица1[[#This Row],[Оплачено случаев]]/Таблица1[[#This Row],[План ДВН, чел.]]*100,1) -> 141.2
A50: Март | B50: ДВН | C50: КГБ № 5 | D50: 4056 | E50: 8097.41503 | F50: 3900 | G50: =Таблица1[[#This Row],[Оплачено случаев]]-Таблица1[[#This Row],[План ДВН, чел.]] -> 156 | H50: =ROUND(Таблица1[[#This Row],[Оплачено случаев]]/Таблица1[[#This Row],[План ДВН, чел.]]*100,1) -> 104
A51: Март | B51: ДВН | C51: КГКБ № 4 | D51: 4229 | E51: 8240.146 | F51: 3193 | G51: =Таблица1[[#This Row],[Оплачено случаев]]-Таблица1[[#This Row],[План ДВН, чел.]] -> 1036 | H51: =ROUND(Таблица1[[#This Row],[Оплачено случаев]]/Таблица1[[#This Row],[План ДВН, чел.]]*100,1) -> 132.4
A52: Март | B52: ДВН | C52: Городская поликлиника | D52: 2139 | E52: 3410.06636 | F52: 1506 | G52: =Таблица1[[#This Row],[Оплачено случаев]]-Таблица1[[#This Row],[План ДВН, чел.]] -> 633 | H52: =ROUND(Таблица1[[#This Row],[Оплачено случаев]]/Таблица1[[#This Row],[План ДВН, чел.]]*100,1) -> 142
A53: Март | B53: ДВН | C53: МСЧ № 1 г. Калуги | D53: 396 | E53: 882.12379 | F53: 200 | G53: =Таблица1[[#This Row],[Оплачено случаев]]-Таблица1[[#This Row],[План ДВН, чел.]] -> 196 | H53: =ROUND(Таблица1[[#This Row],[Оплачено случаев]]/Таблица1[[#This Row],[План ДВН, чел.]]*100,1) -> 198
A54: Март | B54: ДВН | C54: МСЧ № 2 г. Калуги | D54: 57 | E54: 95.06294 | F54: 12 | G54: =Таблица1[[#This Row],[Оплачено случаев]]-Таблица1[[#This Row],[План ДВН, чел.]] -> 45 | H54: =ROUND(Таблица1[[#This Row],[Оплачено случаев]]/Таблица1[[#This Row],[План ДВН, чел.]]*100,1) -> 475
A55: Март | B55: ДВН | C55: МСЧ МВД | D55: 0 | E55: 0 | F55: 0 | G55: =Таблица1[[#This Row],[Оплачено случаев]]-Таблица1[[#This Row],[План ДВН, чел.]] -> 0 | H55: =ROUND(Таблица1[[#This Row],[Оплачено случаев]]/Таблица1[[#This Row],[План ДВН, чел.]]*100,1) -> 
A56: Март | B56: ДВН | C56: ЧУЗ "Больница "РЖД - Медицина" | D56: 256 | E56: 563.43309 | F56: 195 | G56: =Таблица1[[#This Row],[Оплачено случаев]]-Таблица1[[#This Row],[План ДВН, чел.]] -> 61 | H56: =ROUND(Таблица1[[#This Row],[Оплачено случаев]]/Таблица1[[#This Row],[План ДВН, чел.]]*100,1) -> 131.3
A57: Март | B57: ДВН | C57: КБ № 8 ФМБА | D57: 4585 | E57: 10271.35765 | F57: 4500 | G57: =Таблица1[[#This Row],[Оплачено случаев]]-Таблица1[[#This Row],[План ДВН, чел.]] -> 85 | H57: =ROUND(Таблица1[[#This Row],[Оплачено случаев]]/Таблица1[[#This Row],[План ДВН, чел.]]*100,1) -> 101.9
A58: Март | B58: ДВН | C58: ЦРБ Бабынинского района | D58: 610 | E58: 1239.44414 | F58: 464 | G58: =Таблица1[[#This Row],[Оплачено случаев]]-Таблица1[[#This Row],[План ДВН, чел.]] -> 146 | H58: =ROUND(Таблица1[[#This Row],[Оплачено случаев]]/Таблица1[[#This Row],[План ДВН, чел.]]*100,1) -> 131.5
A59: Март | B59: ДВН | C59: ЦРБ Боровского района | D59: 2050 | E59: 5521.30707 | F59: 1280 | G59: =Таблица1[[#This Row],[Оплачено случаев]]-Таблица1[[#This Row],[План ДВН, чел.]] -> 770 | H59: =ROUND(Таблица1[[#This Row],[Оплачено случаев]]/Таблица1[[#This Row],[План ДВН, чел.]]*100,1) -> 160.2
A60: Март | B60: ДВН | C60: ЦРБ Жуковского района | D60: 663 | E60: 1606.68195 | F60: 490 | G60: =Таблица1[[#This Row],[Оплачено случаев]]-Таблица1[[#This Row],[План ДВН, чел.]] -> 173 | H60: =ROUND(Таблица1[[#This Row],[Оплачено случаев]]/Таблица1[[#This Row],[План ДВН, чел.]]*100,1) -> 135.3
A61: Март | B61: ДВН | C61: ГП "Город Кременки" | D61: 213 | E61: 395.4001 | F61: 280 | G61: =Таблица1[[#This Row],[Оплачено случаев]]-Таблица1[[#This Row],[План ДВН, чел.]] -> -67 | H61: =ROUND(Таблица1[[#This Row],[Оплачено случаев]]/Таблица1[[#This Row],[План ДВН, чел.]]*100,1) -> 76.1
A62: Март | B62: ДВН | C62: ЦРБ Малоярославецкого района | D62: 1044 | E62: 2127.5092 | F62: 964 | G62: =Таблица1[[#This Row],[Оплачено случаев]]-Таблица1[[#This Row],[План ДВН, чел.]] -> 80 | H62: =ROUND(Таблица1[[#This Row],[Оплачено случаев]]/Таблица1[[#This Row],[План ДВН, чел.]]*100,1) -> 108.3
A63: Март | B63: ДВН | C63: ЦРБ Тарусского района | D63: 378 | E63: 741.79137 | F63: 362 | G63: =Таблица1[[#This Row],[Оплачено случаев]]-Таблица1[[#This Row],[План ДВН, чел.]] -> 16 | H63: =ROUND(Таблица1[[#This Row],[Оплачено случаев]]/Таблица1[[#This Row],[План ДВН, чел.]]*100,1) -> 104.4
A64: Апрель | B64: ДВН | C64: ЦМБ № 1 | D64: =Y4 -> 0 | E64: =Z4 -> 0 | F64: =AA4 -> 0 | G64: =Таблица1[[#This Row],[Оплачено случаев]]-Таблица1[[#This Row],[План ДВН, чел.]] -> 0 | H64: =ROUND(Таблица1[[#This Row],[Оплачено случаев]]/Таблица1[[#This Row],[План ДВН, чел.]]*100,1) -> 
A65: Апрель | B65: ДВН | C65: ЦМБ № 2 | D65: 0 | E65: 0 | F65: 0 | G65: =Таблица1[[#This Row],[Оплачено случаев]]-Таблица1[[#This Row],[План ДВН, чел.]] -> 0 | H65: =ROUND(Таблица1[[#This Row],[Оплачено случаев]]/Таблица1[[#This Row],[План ДВН, чел.]]*100,1) -> 
A66: Апрель | B66: ДВН | C66: ЦМБ № 3 | D66: 0 | E66: 0 | F66: 0 | G66: =Таблица1[[#This Row],[Оплачено случаев]]-Таблица1[[#This Row],[План ДВН, чел.]] -> 0 | H66: =ROUND(Таблица1[[#This Row],[Оплачено случаев]]/Таблица1[[#This Row],[План ДВН, чел.]]*100,1) -> 
A67: Апрель | B67: ДВН | C67: ЦМБ № 4 | D67: 0 | E67: 0 | F67: 0 | G67: =Таблица1[[#This Row],[Оплачено случаев]]-Таблица1[[#This Row],[План ДВН, чел.]] -> 0 | H67: =ROUND(Таблица1[[#This Row],[Оплачено случаев]]/Таблица1[[#This Row],[План ДВН, чел.]]*100,1) -> 
A68: Апрель | B68: ДВН | C68: ЦМБ № 5 | D68: 0 | E68: 0 | F68: 0 | G68: =Таблица1[[#This Row],[Оплачено случаев]]-Таблица1[[#This Row],[План ДВН, чел.]] -> 0 | H68: =ROUND(Таблица1[[#This Row],[Оплачено случаев]]/Таблица1[[#This Row],[План ДВН, чел.]]*100,1) -> 
A69: Апрель | B69: ДВН | C69: ЦМБ № 6 | D69: 0 | E69: 0 | F69: 0 | G69: =Таблица1[[#This Row],[Оплачено случаев]]-Таблица1[[#This Row],[План ДВН, чел.]] -> 0 | H69: =ROUND(Таблица1[[#This Row],[Оплачено случаев]]/Таблица1[[#This Row],[План ДВН, чел.]]*100,1) -> 
A70: Апрель | B70: ДВН | C70: КГБ № 5 | D70: 0 | E70: 0 | F70: 0 | G70: =Таблица1[[#This Row],[Оплачено случаев]]-Таблица1[[#This Row],[План ДВН, чел.]] -> 0 | H70: =ROUND(Таблица1[[#This Row],[Оплачено случаев]]/Таблица1[[#This Row],[План ДВН, чел.]]*100,1) -> 
A71: Апрель | B71: ДВН | C71: КГКБ № 4 | D71: 0 | E71: 0 | F71: 0 | G71: =Таблица1[[#This Row],[Оплачено случаев]]-Таблица1[[#This Row],[План ДВН, чел.]] -> 0 | H71: =ROUND(Таблица1[[#This Row],[Оплачено случаев]]/Таблица1[[#This Row],[План ДВН, чел.]]*100,1) -> 
A72: Апрель | B72: ДВН | C72: Городская поликлиника | D72: 0 | E72: 0 | F72: 0 | G72: =Таблица1[[#This Row],[Оплачено случаев]]-Таблица1[[#This Row],[План ДВН, чел.]] -> 0 | H72: =ROUND(Таблица1[[#This Row],[Оплачено случаев]]/Таблица1[[#This Row],[План ДВН, чел.]]*100,1) -> 
A73: Апрель | B73: ДВН | C73: МСЧ № 1 г. Калуги | D73: 0 | E73: 0 | F73: 0 | G73: =Таблица1[[#This Row],[Оплачено случаев]]-Таблица1[[#This Row],[План ДВН, чел.]] -> 0 | H73: =ROUND(Таблица1[[#This Row],[Оплачено случаев]]/Таблица1[[#This Row],[План ДВН, чел.]]*100,1) -> 
A74: Апрель | B74: ДВН | C74: МСЧ № 2 г. Калуги | D74: 0 | E74: 0 | F74: 0 | G74: =Таблица1[[#This Row],[Оплачено случаев]]-Таблица1[[#This Row],[План ДВН, чел.]] -> 0 | H74: =ROUND(Таблица1[[#This Row],[Оплачено случаев]]/Таблица1[[#This Row],[План ДВН, чел.]]*100,1) -> 
A75: Апрель | B75: ДВН | C75: МСЧ МВД | D75: 0 | E75: 0 | F75: 0 | G75: =Таблица1[[#This Row],[Оплачено случаев]]-Таблица1[[#This Row],[План ДВН, чел.]] -> 0 | H75: =ROUND(Таблица1[[#This Row],[Оплачено случаев]]/Таблица1[[#This Row],[План ДВН, чел.]]*100,1) -> 
A76: Апрель | B76: ДВН | C76: ЧУЗ "Больница "РЖД - Медицина" | D76: 0 | E76: 0 | F76: 0 | G76: =Таблица1[[#This Row],[Оплачено случаев]]-Таблица1[[#This Row],[План ДВН, чел.]] -> 0 | H76: =ROUND(Таблица1[[#This Row],[Оплачено случаев]]/Таблица1[[#This Row],[План ДВН, чел.]]*100,1) -> 
A77: Апрель | B77: ДВН | C77: КБ № 8 ФМБА | D77: 0 | E77: 0 | F77: 0 | G77: =Таблица1[[#This Row],[Оплачено случаев]]-Таблица1[[#This Row],[План ДВН, чел.]] -> 0 | H77: =ROUND(Таблица1[[#This Row],[Оплачено случаев]]/Таблица1[[#This Row],[План ДВН, чел.]]*100,1) -> 
A78: Апрель | B78: ДВН | C78: ЦРБ Бабынинского района | D78: 0 | E78: 0 | F78: 0 | G78: =Таблица1[[#This Row],[Оплачено случаев]]-Таблица1[[#This Row],[План ДВН, чел.]] -> 0 | H78: =ROUND(Таблица1[[#This Row],[Оплачено случаев]]/Таблица1[[#This Row],[План ДВН, чел.]]*100,1) -> 
A79: Апрель | B79: ДВН | C79: ЦРБ Боровского района | D79: 0 | E79: 0 | F79: 0 | G79: =Таблица1[[#This Row],[Оплачено случаев]]-Таблица1[[#This Row],[План ДВН, чел.]] -> 0 | H79: =ROUND(Таблица1[[#This Row],[Оплачено случаев]]/Таблица1[[#This Row],[План ДВН, чел.]]*100,1) -> 
A80: Апрель | B80: ДВН | C80: ЦРБ Жуковского района | D80: 0 | E80: 0 | F80: 0 | G80: =Таблица1[[#This Row],[Оплачено случаев]]-Таблица1[[#This Row],[План ДВН, чел.]] -> 0 | H80: =ROUND(Таблица1[[#This Row],[Оплачено случаев]]/Таблица1[[#This Row],[План ДВН, чел.]]*100,1) -> 
A81: Апрель | B81: ДВН | C81: ГП "Город Кременки" | D81: 0 | E81: 0 | F81: 0 | G81: =Таблица1[[#This Row],[Оплачено случаев]]-Таблица1[[#This Row],[План ДВН, чел.]] -> 0 | H81: =ROUND(Таблица1[[#This Row],[Оплачено случаев]]/Таблица1[[#This Row],[План ДВН, чел.]]*100,1) -> 
A82: Апрель | B82: ДВН | C82: ЦРБ Малоярославецкого района | D82: 0 | E82: 0 | F82: 0 | G82: =Таблица1[[#This Row],[Оплачено случаев]]-Таблица1[[#This Row],[План ДВН, чел.]] -> 0 | H82: =ROUND(Таблица1[[#This Row],[Оплачено случаев]]/Таблица1[[#This Row],[План ДВН, чел.]]*100,1) -> 
A83: Апрель | B83: ДВН | C83: ЦРБ Тарусского района | D83: 0 | E83: 0 | F83: 0 | G83: =Таблица1[[#This Row],[Оплачено случаев]]-Таблица1[[#This Row],[План ДВН, чел.]] -> 0 | H83: =ROUND(Таблица1[[#This Row],[Оплачено случаев]]/Таблица1[[#This Row],[План ДВН, чел.]]*100,1) -> 
A84: Май | B84: ДВН | C84: ЦМБ № 1 | D84: =AD4 -> 0 | E84: =AE4 -> 0 | F84: =AF4 -> 0 | G84: =Таблица1[[#This Row],[Оплачено случаев]]-Таблица1[[#This Row],[План ДВН, чел.]] -> 0 | H84: =ROUND(Таблица1[[#This Row],[Оплачено случаев]]/Таблица1[[#This Row],[План ДВН, чел.]]*100,1) -> 
A85: Май | B85: ДВН | C85: ЦМБ № 2 | D85: 0 | E85: 0 | F85: 0 | G85: =Таблица1[[#This Row],[Оплачено случаев]]-Таблица1[[#This Row],[План ДВН, чел.]] -> 0 | H85: =ROUND(Таблица1[[#This Row],[Оплачено случаев]]/Таблица1[[#This Row],[План ДВН, чел.]]*100,1) -> 
A86: Май | B86: ДВН | C86: ЦМБ № 3 | D86: 0 | E86: 0 | F86: 0 | G86: =Таблица1[[#This Row],[Оплачено случаев]]-Таблица1[[#This Row],[План ДВН, чел.]] -> 0 | H86: =ROUND(Таблица1[[#This Row],[Оплачено случаев]]/Таблица1[[#This Row],[План ДВН, чел.]]*100,1) -> 
A87: Май | B87: ДВН | C87: ЦМБ № 4 | D87: 0 | E87: 0 | F87: 0 | G87: =Таблица1[[#This Row],[Оплачено случаев]]-Таблица1[[#This Row],[План ДВН, чел.]] -> 0 | H87: =ROUND(Таблица1[[#This Row],[Оплачено случаев]]/Таблица1[[#This Row],[План ДВН, чел.]]*100,1) -> 
A88: Май | B88: ДВН | C88: ЦМБ № 5 | D88: 0 | E88: 0 | F88: 0 | G88: =Таблица1[[#This Row],[Оплачено случаев]]-Таблица1[[#This Row],[План ДВН, чел.]] -> 0 | H88: =ROUND(Таблица1[[#This Row],[Оплачено случаев]]/Таблица1[[#This Row],[План ДВН, чел.]]*100,1) -> 
A89: Май | B89: ДВН | C89: ЦМБ № 6 | D89: 0 | E89: 0 | F89: 0 | G89: =Таблица1[[#This Row],[Оплачено случаев]]-Таблица1[[#This Row],[План ДВН, чел.]] -> 0 | H89: =ROUND(Таблица1[[#This Row],[Оплачено случаев]]/Таблица1[[#This Row],[План ДВН, чел.]]*100,1) -> 
A90: Май | B90: ДВН | C90: КГБ № 5 | D90: 0 | E90: 0 | F90: 0 | G90: =Таблица1[[#This Row],[Оплачено случаев]]-Таблица1[[#This Row],[План ДВН, чел.]] -> 0 | H90: =ROUND(Таблица1[[#This Row],[Оплачено случаев]]/Таблица1[[#This Row],[План ДВН, чел.]]*100,1) -> 
A91: Май | B91: ДВН | C91: КГКБ № 4 | D91: 0 | E91: 0 | F91: 0 | G91: =Таблица1[[#This Row],[Оплачено случаев]]-Таблица1[[#This Row],[План ДВН, чел.]] -> 0 | H91: =ROUND(Таблица1[[#This Row],[Оплачено случаев]]/Таблица1[[#This Row],[План ДВН, чел.]]*100,1) -> 
A92: Май | B92: ДВН | C92: Городская поликлиника | D92: 0 | E92: 0 | F92: 0 | G92: =Таблица1[[#This Row],[Оплачено случаев]]-Таблица1[[#This Row],[План ДВН, чел.]] -> 0 | H92: =ROUND(Таблица1[[#This Row],[Оплачено случаев]]/Таблица1[[#This Row],[План ДВН, чел.]]*100,1) -> 
A93: Май | B93: ДВН | C93: МСЧ № 1 г. Калуги | D93: 0 | E93: 0 | F93: 0 | G93: =Таблица1[[#This Row],[Оплачено случаев]]-Таблица1[[#This Row],[План ДВН, чел.]] -> 0 | H93: =ROUND(Таблица1[[#This Row],[Оплачено случаев]]/Таблица1[[#This Row],[План ДВН, чел.]]*100,1) -> 
A94: Май | B94: ДВН | C94: МСЧ № 2 г. Калуги | D94: 0 | E94: 0 | F94: 0 | G94: =Таблица1[[#This Row],[Оплачено случаев]]-Таблица1[[#This Row],[План ДВН, чел.]] -> 0 | H94: =ROUND(Таблица1[[#This Row],[Оплачено случаев]]/Таблица1[[#This Row],[План ДВН, чел.]]*100,1) -> 
A95: Май | B95: ДВН | C95: МСЧ МВД | D95: 0 | E95: 0 | F95: 0 | G95: =Таблица1[[#This Row],[Оплачено случаев]]-Таблица1[[#This Row],[План ДВН, чел.]] -> 0 | H95: =ROUND(Таблица1[[#This Row],[Оплачено случаев]]/Таблица1[[#This Row],[План ДВН, чел.]]*100,1) -> 
A96: Май | B96: ДВН | C96: ЧУЗ "Больница "РЖД - Медицина" | D96: 0 | E96: 0 | F96: 0 | G96: =Таблица1[[#This Row],[Оплачено случаев]]-Таблица1[[#This Row],[План ДВН, чел.]] -> 0 | H96: =ROUND(Таблица1[[#This Row],[Оплачено случаев]]/Таблица1[[#This Row],[План ДВН, чел.]]*100,1) -> 
A97: Май | B97: ДВН | C97: КБ № 8 ФМБА | D97: 0 | E97: 0 | F97: 0 | G97: =Таблица1[[#This Row],[Оплачено случаев]]-Таблица1[[#This Row],[План ДВН, чел.]] -> 0 | H97: =ROUND(Таблица1[[#This Row],[Оплачено случаев]]/Таблица1[[#This Row],[План ДВН, чел.]]*100,1) -> 
A98: Май | B98: ДВН | C98: ЦРБ Бабынинского района | D98: 0 | E98: 0 | F98: 0 | G98: =Таблица1[[#This Row],[Оплачено случаев]]-Таблица1[[#This Row],[План ДВН, чел.]] -> 0 | H98: =ROUND(Таблица1[[#This Row],[Оплачено случаев]]/Таблица1[[#This Row],[План ДВН, чел.]]*100,1) -> 
A99: Май | B99: ДВН | C99: ЦРБ Боровского района | D99: 0 | E99: 0 | F99: 0 | G99: =Таблица1[[#This Row],[Оплачено случаев]]-Таблица1[[#This Row],[План ДВН, чел.]] -> 0 | H99: =ROUND(Таблица1[[#This Row],[Оплачено случаев]]/Таблица1[[#This Row],[План ДВН, чел.]]*100,1) -> 
A100: Май | B100: ДВН | C100: ЦРБ Жуковского района | D100: 0 | E100: 0 | F100: 0 | G100: =Таблица1[[#This Row],[Оплачено случаев]]-Таблица1[[#This Row],[План ДВН, чел.]] -> 0 | H100: =ROUND(Таблица1[[#This Row],[Оплачено случаев]]/Таблица1[[#This Row],[План ДВН, чел.]]*100,1) -> 
A101: Май | B101: ДВН | C101: ГП "Город Кременки" | D101: 0 | E101: 0 | F101: 0 | G101: =Таблица1[[#This Row],[Оплачено случаев]]-Таблица1[[#This Row],[План ДВН, чел.]] -> 0 | H101: =ROUND(Таблица1[[#This Row],[Оплачено случаев]]/Таблица1[[#This Row],[План ДВН, чел.]]*100,1) -> 
A102: Май | B102: ДВН | C102: ЦРБ Малоярославецкого района | D102: 0 | E102: 0 | F102: 0 | G102: =Таблица1[[#This Row],[Оплачено случаев]]-Таблица1[[#This Row],[План ДВН, чел.]] -> 0 | H102: =ROUND(Таблица1[[#This Row],[Оплачено случаев]]/Таблица1[[#This Row],[План ДВН, чел.]]*100,1) -> 
A103: Май | B103: ДВН | C103: ЦРБ Тарусского района | D103: 0 | E103: 0 | F103: 0 | G103: =Таблица1[[#This Row],[Оплачено случаев]]-Таблица1[[#This Row],[План ДВН, чел.]] -> 0 | H103: =ROUND(Таблица1[[#This Row],[Оплачено случаев]]/Таблица1[[#This Row],[План ДВН, чел.]]*100,1) -> 
A104: Июнь | B104: ДВН | C104: ЦМБ № 1 | D104: =AI4 -> 0 | E104: =AJ4 -> 0 | F104: =AK4 -> 0 | G104: =Таблица1[[#This Row],[Оплачено случаев]]-Таблица1[[#This Row],[План ДВН, чел.]] -> 0 | H104: =ROUND(Таблица1[[#This Row],[Оплачено случаев]]/Таблица1[[#This Row],[План ДВН, чел.]]*100,1) -> 
A105: Июнь | B105: ДВН | C105: ЦМБ № 2 | D105: 0 | E105: 0 | F105: 0 | G105: =Таблица1[[#This Row],[Оплачено случаев]]-Таблица1[[#This Row],[План ДВН, чел.]] -> 0 | H105: =ROUND(Таблица1[[#This Row],[Оплачено случаев]]/Таблица1[[#This Row],[План ДВН, чел.]]*100,1) -> 
A106: Июнь | B106: ДВН | C106: ЦМБ № 3 | D106: 0 | E106: 0 | F106: 0 | G106: =Таблица1[[#This Row],[Оплачено случаев]]-Таблица1[[#This Row],[План ДВН, чел.]] -> 0 | H106: =ROUND(Таблица1[[#This Row],[Оплачено случаев]]/Таблица1[[#This Row],[План ДВН, чел.]]*100,1) -> 
A107: Июнь | B107: ДВН | C107: ЦМБ № 4 | D107: 0 | E107: 0 | F107: 0 | G107: =Таблица1[[#This Row],[Оплачено случаев]]-Таблица1[[#This Row],[План ДВН, чел.]] -> 0 | H107: =ROUND(Таблица1[[#This Row],[Оплачено случаев]]/Таблица1[[#This Row],[План ДВН, чел.]]*100,1) -> 
A108: Июнь | B108: ДВН | C108: ЦМБ № 5 | D108: 0 | E108: 0 | F108: 0 | G108: =Таблица1[[#This Row],[Оплачено случаев]]-Таблица1[[#This Row],[План ДВН, чел.]] -> 0 | H108: =ROUND(Таблица1[[#This Row],[Оплачено случаев]]/Таблица1[[#This Row],[План ДВН, чел.]]*100,1) -> 
A109: Июнь | B109: ДВН | C109: ЦМБ № 6 | D109: 0 | E109: 0 | F109: 0 | G109: =Таблица1[[#This Row],[Оплачено случаев]]-Таблица1[[#This Row],[План ДВН, чел.]] -> 0 | H109: =ROUND(Таблица1[[#This Row],[Оплачено случаев]]/Таблица1[[#This Row],[План ДВН, чел.]]*100,1) -> 
A110: Июнь | B110: ДВН | C110: КГБ № 5 | D110: 0 | E110: 0 | F110: 0 | G110: =Таблица1[[#This Row],[Оплачено случаев]]-Таблица1[[#This Row],[План ДВН, чел.]] -> 0 | H110: =ROUND(Таблица1[[#This Row],[Оплачено случаев]]/Таблица1[[#This Row],[План ДВН, чел.]]*100,1) -> 
A111: Июнь | B111: ДВН | C111: КГКБ № 4 | D111: 0 | E111: 0 | F111: 0 | G111: =Таблица1[[#This Row],[Оплачено случаев]]-Таблица1[[#This Row],[План ДВН, чел.]] -> 0 | H111: =ROUND(Таблица1[[#This Row],[Оплачено случаев]]/Таблица1[[#This Row],[План ДВН, чел.]]*100,1) -> 
A112: Июнь | B112: ДВН | C112: Городская поликлиника | D112: 0 | E112: 0 | F112: 0 | G112: =Таблица1[[#This Row],[Оплачено случаев]]-Таблица1[[#This Row],[План ДВН, чел.]] -> 0 | H112: =ROUND(Таблица1[[#This Row],[Оплачено случаев]]/Таблица1[[#This Row],[План ДВН, чел.]]*100,1) -> 
A113: Июнь | B113: ДВН | C113: МСЧ № 1 г. Калуги | D113: 0 | E113: 0 | F113: 0 | G113: =Таблица1[[#This Row],[Оплачено случаев]]-Таблица1[[#This Row],[План ДВН, чел.]] -> 0 | H113: =ROUND(Таблица1[[#This Row],[Оплачено случаев]]/Таблица1[[#This Row],[План ДВН, чел.]]*100,1) -> 
A114: Июнь | B114: ДВН | C114: МСЧ № 2 г. Калуги | D114: 0 | E114: 0 | F114: 0 | G114: =Таблица1[[#This Row],[Оплачено случаев]]-Таблица1[[#This Row],[План ДВН, чел.]] -> 0 | H114: =ROUND(Таблица1[[#This Row],[Оплачено случаев]]/Таблица1[[#This Row],[План ДВН, чел.]]*100,1) -> 
A115: Июнь | B115: ДВН | C115: МСЧ МВД | D115: 0 | E115: 0 | F115: 0 | G115: =Таблица1[[#This Row],[Оплачено случаев]]-Таблица1[[#This Row],[План ДВН, чел.]] -> 0 | H115: =ROUND(Таблица1[[#This Row],[Оплачено случаев]]/Таблица1[[#This Row],[План ДВН, чел.]]*100,1) -> 
A116: Июнь | B116: ДВН | C116: ЧУЗ "Больница "РЖД - Медицина" | D116: 0 | E116: 0 | F116: 0 | G116: =Таблица1[[#This Row],[Оплачено случаев]]-Таблица1[[#This Row],[План ДВН, чел.]] -> 0 | H116: =ROUND(Таблица1[[#This Row],[Оплачено случаев]]/Таблица1[[#This Row],[План ДВН, чел.]]*100,1) -> 
A117: Июнь | B117: ДВН | C117: КБ № 8 ФМБА | D117: 0 | E117: 0 | F117: 0 | G117: =Таблица1[[#This Row],[Оплачено случаев]]-Таблица1[[#This Row],[План ДВН, чел.]] -> 0 | H117: =ROUND(Таблица1[[#This Row],[Оплачено случаев]]/Таблица1[[#This Row],[План ДВН, чел.]]*100,1) -> 
A118: Июнь | B118: ДВН | C118: ЦРБ Бабынинского района | D118: 0 | E118: 0 | F118: 0 | G118: =Таблица1[[#This Row],[Оплачено случаев]]-Таблица1[[#This Row],[План ДВН, чел.]] -> 0 | H118: =ROUND(Таблица1[[#This Row],[Оплачено случаев]]/Таблица1[[#This Row],[План ДВН, чел.]]*100,1) -> 
A119: Июнь | B119: ДВН | C119: ЦРБ Боровского района | D119: 0 | E119: 0 | F119: 0 | G119: =Таблица1[[#This Row],[Оплачено случаев]]-Таблица1[[#This Row],[План ДВН, чел.]] -> 0 | H119: =ROUND(Таблица1[[#This Row],[Оплачено случаев]]/Таблица1[[#This Row],[План ДВН, чел.]]*100,1) -> 
A120: Июнь | B120: ДВН | C120: ЦРБ Жуковского района | D120: 0 | E120: 0 | F120: 0 | G120: =Таблица1[[#This Row],[Оплачено случаев]]-Таблица1[[#This Row],[План ДВН, чел.]] -> 0 | H120: =ROUND(Таблица1[[#This Row],[Оплачено случаев]]/Таблица1[[#This Row],[План ДВН, чел.]]*100,1) -> 
A121: Июнь | B121: ДВН | C121: ГП "Город Кременки" | D121: 0 | E121: 0 | F121: 0 | G121: =Таблица1[[#This Row],[Оплачено случаев]]-Таблица1[[#This Row],[План ДВН, чел.]] -> 0 | H121: =ROUND(Таблица1[[#This Row],[Оплачено случаев]]/Таблица1[[#This Row],[План ДВН, чел.]]*100,1) -> 
A122: Июнь | B122: ДВН | C122: ЦРБ Малоярославецкого района | D122: 0 | E122: 0 | F122: 0 | G122: =Таблица1[[#This Row],[Оплачено случаев]]-Таблица1[[#This Row],[План ДВН, чел.]] -> 0 | H122: =ROUND(Таблица1[[#This Row],[Оплачено случаев]]/Таблица1[[#This Row],[План ДВН, чел.]]*100,1) -> 
A123: Июнь | B123: ДВН | C123: ЦРБ Тарусского района | D123: 0 | E123: 0 | F123: 0 | G123: =Таблица1[[#This Row],[Оплачено случаев]]-Таблица1[[#This Row],[План ДВН, чел.]] -> 0 | H123: =ROUND(Таблица1[[#This Row],[Оплачено случаев]]/Таблица1[[#This Row],[План ДВН, чел.]]*100,1) -> 
A124: Июль | B124: ДВН | C124: ЦМБ № 1 | D124: =AN4 -> 0 | E124: =AO4 -> 0 | F124: =AP4 -> 0 | G124: =Таблица1[[#This Row],[Оплачено случаев]]-Таблица1[[#This Row],[План ДВН, чел.]] -> 0 | H124: =ROUND(Таблица1[[#This Row],[Оплачено случаев]]/Таблица1[[#This Row],[План ДВН, чел.]]*100,1) -> 
A125: Июль | B125: ДВН | C125: ЦМБ № 2 | D125: 0 | E125: 0 | F125: 0 | G125: =Таблица1[[#This Row],[Оплачено случаев]]-Таблица1[[#This Row],[План ДВН, чел.]] -> 0 | H125: =ROUND(Таблица1[[#This Row],[Оплачено случаев]]/Таблица1[[#This Row],[План ДВН, чел.]]*100,1) -> 
A126: Июль | B126: ДВН | C126: ЦМБ № 3 | D126: 0 | E126: 0 | F126: 0 | G126: =Таблица1[[#This Row],[Оплачено случаев]]-Таблица1[[#This Row],[План ДВН, чел.]] -> 0 | H126: =ROUND(Таблица1[[#This Row],[Оплачено случаев]]/Таблица1[[#This Row],[План ДВН, чел.]]*100,1) -> 
A127: Июль | B127: ДВН | C127: ЦМБ № 4 | D127: 0 | E127: 0 | F127: 0 | G127: =Таблица1[[#This Row],[Оплачено случаев]]-Таблица1[[#This Row],[План ДВН, чел.]] -> 0 | H127: =ROUND(Таблица1[[#This Row],[Оплачено случаев]]/Таблица1[[#This Row],[План ДВН, чел.]]*100,1) -> 
A128: Июль | B128: ДВН | C128: ЦМБ № 5 | D128: 0 | E128: 0 | F128: 0 | G128: =Таблица1[[#This Row],[Оплачено случаев]]-Таблица1[[#This Row],[План ДВН, чел.]] -> 0 | H128: =ROUND(Таблица1[[#This Row],[Оплачено случаев]]/Таблица1[[#This Row],[План ДВН, чел.]]*100,1) -> 
A129: Июль | B129: ДВН | C129: ЦМБ № 6 | D129: 0 | E129: 0 | F129: 0 | G129: =Таблица1[[#This Row],[Оплачено случаев]]-Таблица1[[#This Row],[План ДВН, чел.]] -> 0 | H129: =ROUND(Таблица1[[#This Row],[Оплачено случаев]]/Таблица1[[#This Row],[План ДВН, чел.]]*100,1) -> 
A130: Июль | B130: ДВН | C130: КГБ № 5 | D130: 0 | E130: 0 | F130: 0 | G130: =Таблица1[[#This Row],[Оплачено случаев]]-Таблица1[[#This Row],[План ДВН, чел.]] -> 0 | H130: =ROUND(Таблица1[[#This Row],[Оплачено случаев]]/Таблица1[[#This Row],[План ДВН, чел.]]*100,1) -> 
A131: Июль | B131: ДВН | C131: КГКБ № 4 | D131: 0 | E131: 0 | F131: 0 | G131: =Таблица1[[#This Row],[Оплачено случаев]]-Таблица1[[#This Row],[План ДВН, чел.]] -> 0 | H131: =ROUND(Таблица1[[#This Row],[Оплачено случаев]]/Таблица1[[#This Row],[План ДВН, чел.]]*100,1) -> 
A132: Июль | B132: ДВН | C132: Городская поликлиника | D132: 0 | E132: 0 | F132: 0 | G132: =Таблица1[[#This Row],[Оплачено случаев]]-Таблица1[[#This Row],[План ДВН, чел.]] -> 0 | H132: =ROUND(Таблица1[[#This Row],[Оплачено случаев]]/Таблица1[[#This Row],[План ДВН, чел.]]*100,1) -> 
A133: Июль | B133: ДВН | C133: МСЧ № 1 г. Калуги | D133: 0 | E133: 0 | F133: 0 | G133: =Таблица1[[#This Row],[Оплачено случаев]]-Таблица1[[#This Row],[План ДВН, чел.]] -> 0 | H133: =ROUND(Таблица1[[#This Row],[Оплачено случаев]]/Таблица1[[#This Row],[План ДВН, чел.]]*100,1) -> 
A134: Июль | B134: ДВН | C134: МСЧ № 2 г. Калуги | D134: 0 | E134: 0 | F134: 0 | G134: =Таблица1[[#This Row],[Оплачено случаев]]-Таблица1[[#This Row],[План ДВН, чел.]] -> 0 | H134: =ROUND(Таблица1[[#This Row],[Оплачено случаев]]/Таблица1[[#This Row],[План ДВН, чел.]]*100,1) -> 
A135: Июль | B135: ДВН | C135: МСЧ МВД | D135: 0 | E135: 0 | F135: 0 | G135: =Таблица1[[#This Row],[Оплачено случаев]]-Таблица1[[#This Row],[План ДВН, чел.]] -> 0 | H135: =ROUND(Таблица1[[#This Row],[Оплачено случаев]]/Таблица1[[#This Row],[План ДВН, чел.]]*100,1) -> 
A136: Июль | B136: ДВН | C136: ЧУЗ "Больница "РЖД - Медицина" | D136: 0 | E136: 0 | F136: 0 | G136: =Таблица1[[#This Row],[Оплачено случаев]]-Таблица1[[#This Row],[План ДВН, чел.]] -> 0 | H136: =ROUND(Таблица1[[#This Row],[Оплачено случаев]]/Таблица1[[#This Row],[План ДВН, чел.]]*100,1) -> 
A137: Июль | B137: ДВН | C137: КБ № 8 ФМБА | D137: 0 | E137: 0 | F137: 0 | G137: =Таблица1[[#This Row],[Оплачено случаев]]-Таблица1[[#This Row],[План ДВН, чел.]] -> 0 | H137: =ROUND(Таблица1[[#This Row],[Оплачено случаев]]/Таблица1[[#This Row],[План ДВН, чел.]]*100,1) -> 
A138: Июль | B138: ДВН | C138: ЦРБ Бабынинского района | D138: 0 | E138: 0 | F138: 0 | G138: =Таблица1[[#This Row],[Оплачено случаев]]-Таблица1[[#This Row],[План ДВН, чел.]] -> 0 | H138: =ROUND(Таблица1[[#This Row],[Оплачено случаев]]/Таблица1[[#This Row],[План ДВН, чел.]]*100,1) -> 
A139: Июль | B139: ДВН | C139: ЦРБ Боровского района | D139: 0 | E139: 0 | F139: 0 | G139: =Таблица1[[#This Row],[Оплачено случаев]]-Таблица1[[#This Row],[План ДВН, чел.]] -> 0 | H139: =ROUND(Таблица1[[#This Row],[Оплачено случаев]]/Таблица1[[#This Row],[План ДВН, чел.]]*100,1) -> 
A140: Июль | B140: ДВН | C140: ЦРБ Жуковского района | D140: 0 | E140: 0 | F140: 0 | G140: =Таблица1[[#This Row],[Оплачено случаев]]-Таблица1[[#This Row],[План ДВН, чел.]] -> 0 | H140: =ROUND(Таблица1[[#This Row],[Оплачено случаев]]/Таблица1[[#This Row],[План ДВН, чел.]]*100,1) -> 
A141: Июль | B141: ДВН | C141: ГП "Город Кременки" | D141: 0 | E141: 0 | F141: 0 | G141: =Таблица1[[#This Row],[Оплачено случаев]]-Таблица1[[#This Row],[План ДВН, чел.]] -> 0 | H141: =ROUND(Таблица1[[#This Row],[Оплачено случаев]]/Таблица1[[#This Row],[План ДВН, чел.]]*100,1) -> 
A142: Июль | B142: ДВН | C142: ЦРБ Малоярославецкого района | D142: 0 | E142: 0 | F142: 0 | G142: =Таблица1[[#This Row],[Оплачено случаев]]-Таблица1[[#This Row],[План ДВН, чел.]] -> 0 | H142: =ROUND(Таблица1[[#This Row],[Оплачено случаев]]/Таблица1[[#This Row],[План ДВН, чел.]]*100,1) -> 
A143: Июль | B143: ДВН | C143: ЦРБ Тарусского района | D143: 0 | E143: 0 | F143: 0 | G143: =Таблица1[[#This Row],[Оплачено случаев]]-Таблица1[[#This Row],[План ДВН, чел.]] -> 0 | H143: =ROUND(Таблица1[[#This Row],[Оплачено случаев]]/Таблица1[[#This Row],[План ДВН, чел.]]*100,1) -> 
A144: Август | B144: ДВН | C144: ЦМБ № 1 | D144: =AS4 -> 0 | E144: =AT4 -> 0 | F144: =AU4 -> 0 | G144: =Таблица1[[#This Row],[Оплачено случаев]]-Таблица1[[#This Row],[План ДВН, чел.]] -> 0 | H144: =ROUND(Таблица1[[#This Row],[Оплачено случаев]]/Таблица1[[#This Row],[План ДВН, чел.]]*100,1) -> 
A145: Август | B145: ДВН | C145: ЦМБ № 2 | D145: 0 | E145: 0 | F145: 0 | G145: =Таблица1[[#This Row],[Оплачено случаев]]-Таблица1[[#This Row],[План ДВН, чел.]] -> 0 | H145: =ROUND(Таблица1[[#This Row],[Оплачено случаев]]/Таблица1[[#This Row],[План ДВН, чел.]]*100,1) -> 
A146: Август | B146: ДВН | C146: ЦМБ № 3 | D146: 0 | E146: 0 | F146: 0 | G146: =Таблица1[[#This Row],[Оплачено случаев]]-Таблица1[[#This Row],[План ДВН, чел.]] -> 0 | H146: =ROUND(Таблица1[[#This Row],[Оплачено случаев]]/Таблица1[[#This Row],[План ДВН, чел.]]*100,1) -> 
A147: Август | B147: ДВН | C147: ЦМБ № 4 | D147: 0 | E147: 0 | F147: 0 | G147: =Таблица1[[#This Row],[Оплачено случаев]]-Таблица1[[#This Row],[План ДВН, чел.]] -> 0 | H147: =ROUND(Таблица1[[#This Row],[Оплачено случаев]]/Таблица1[[#This Row],[План ДВН, чел.]]*100,1) -> 
A148: Август | B148: ДВН | C148: ЦМБ № 5 | D148: 0 | E148: 0 | F148: 0 | G148: =Таблица1[[#This Row],[Оплачено случаев]]-Таблица1[[#This Row],[План ДВН, чел.]] -> 0 | H148: =ROUND(Таблица1[[#This Row],[Оплачено случаев]]/Таблица1[[#This Row],[План ДВН, чел.]]*100,1) -> 
A149: Август | B149: ДВН | C149: ЦМБ № 6 | D149: 0 | E149: 0 | F149: 0 | G149: =Таблица1[[#This Row],[Оплачено случаев]]-Таблица1[[#This Row],[План ДВН, чел.]] -> 0 | H149: =ROUND(Таблица1[[#This Row],[Оплачено случаев]]/Таблица1[[#This Row],[План ДВН, чел.]]*100,1) -> 
A150: Август | B150: ДВН | C150: КГБ № 5 | D150: 0 | E150: 0 | F150: 0 | G150: =Таблица1[[#This Row],[Оплачено случаев]]-Таблица1[[#This Row],[План ДВН, чел.]] -> 0 | H150: =ROUND(Таблица1[[#This Row],[Оплачено случаев]]/Таблица1[[#This Row],[План ДВН, чел.]]*100,1) -> 
A151: Август | B151: ДВН | C151: КГКБ № 4 | D151: 0 | E151: 0 | F151: 0 | G151: =Таблица1[[#This Row],[Оплачено случаев]]-Таблица1[[#This Row],[План ДВН, чел.]] -> 0 | H151: =ROUND(Таблица1[[#This Row],[Оплачено случаев]]/Таблица1[[#This Row],[План ДВН, чел.]]*100,1) -> 
A152: Август | B152: ДВН | C152: Городская поликлиника | D152: 0 | E152: 0 | F152: 0 | G152: =Таблица1[[#This Row],[Оплачено случаев]]-Таблица1[[#This Row],[План ДВН, чел.]] -> 0 | H152: =ROUND(Таблица1[[#This Row],[Оплачено случаев]]/Таблица1[[#This Row],[План ДВН, чел.]]*100,1) -> 
A153: Август | B153: ДВН | C153: МСЧ № 1 г. Калуги | D153: 0 | E153: 0 | F153: 0 | G153: =Таблица1[[#This Row],[Оплачено случаев]]-Таблица1[[#This Row],[План ДВН, чел.]] -> 0 | H153: =ROUND(Таблица1[[#This Row],[Оплачено случаев]]/Таблица1[[#This Row],[План ДВН, чел.]]*100,1) -> 
A154: Август | B154: ДВН | C154: МСЧ № 2 г. Калуги | D154: 0 | E154: 0 | F154: 0 | G154: =Таблица1[[#This Row],[Оплачено случаев]]-Таблица1[[#This Row],[План ДВН, чел.]] -> 0 | H154: =ROUND(Таблица1[[#This Row],[Оплачено случаев]]/Таблица1[[#This Row],[План ДВН, чел.]]*100,1) -> 
A155: Август | B155: ДВН | C155: МСЧ МВД | D155: 0 | E155: 0 | F155: 0 | G155: =Таблица1[[#This Row],[Оплачено случаев]]-Таблица1[[#This Row],[План ДВН, чел.]] -> 0 | H155: =ROUND(Таблица1[[#This Row],[Оплачено случаев]]/Таблица1[[#This Row],[План ДВН, чел.]]*100,1) -> 
A156: Август | B156: ДВН | C156: ЧУЗ "Больница "РЖД - Медицина" | D156: 0 | E156: 0 | F156: 0 | G156: =Таблица1[[#This Row],[Оплачено случаев]]-Таблица1[[#This Row],[План ДВН, чел.]] -> 0 | H156: =ROUND(Таблица1[[#This Row],[Оплачено случаев]]/Таблица1[[#This Row],[План ДВН, чел.]]*100,1) -> 
A157: Август | B157: ДВН | C157: КБ № 8 ФМБА | D157: 0 | E157: 0 | F157: 0 | G157: =Таблица1[[#This Row],[Оплачено случаев]]-Таблица1[[#This Row],[План ДВН, чел.]] -> 0 | H157: =ROUND(Таблица1[[#This Row],[Оплачено случаев]]/Таблица1[[#This Row],[План ДВН, чел.]]*100,1) -> 
A158: Август | B158: ДВН | C158: ЦРБ Бабынинского района | D158: 0 | E158: 0 | F158: 0 | G158: =Таблица1[[#This Row],[Оплачено случаев]]-Таблица1[[#This Row],[План ДВН, чел.]] -> 0 | H158: =ROUND(Таблица1[[#This Row],[Оплачено случаев]]/Таблица1[[#This Row],[План ДВН, чел.]]*100,1) -> 
A159: Август | B159: ДВН | C159: ЦРБ Боровского района | D159: 0 | E159: 0 | F159: 0 | G159: =Таблица1[[#This Row],[Оплачено случаев]]-Таблица1[[#This Row],[План ДВН, чел.]] -> 0 | H159: =ROUND(Таблица1[[#This Row],[Оплачено случаев]]/Таблица1[[#This Row],[План ДВН, чел.]]*100,1) -> 
A160: Август | B160: ДВН | C160: ЦРБ Жуковского района | D160: 0 | E160: 0 | F160: 0 | G160: =Таблица1[[#This Row],[Оплачено случаев]]-Таблица1[[#This Row],[План ДВН, чел.]] -> 0 | H160: =ROUND(Таблица1[[#This Row],[Оплачено случаев]]/Таблица1[[#This Row],[План ДВН, чел.]]*100,1) -> 
A161: Август | B161: ДВН | C161: ГП "Город Кременки" | D161: 0 | E161: 0 | F161: 0 | G161: =Таблица1[[#This Row],[Оплачено случаев]]-Таблица1[[#This Row],[План ДВН, чел.]] -> 0 | H161: =ROUND(Таблица1[[#This Row],[Оплачено случаев]]/Таблица1[[#This Row],[План ДВН, чел.]]*100,1) -> 
A162: Август | B162: ДВН | C162: ЦРБ Малоярославецкого района | D162: 0 | E162: 0 | F162: 0 | G162: =Таблица1[[#This Row],[Оплачено случаев]]-Таблица1[[#This Row],[План ДВН, чел.]] -> 0 | H162: =ROUND(Таблица1[[#This Row],[Оплачено случаев]]/Таблица1[[#This Row],[План ДВН, чел.]]*100,1) -> 
A163: Август | B163: ДВН | C163: ЦРБ Тарусского района | D163: 0 | E163: 0 | F163: 0 | G163: =Таблица1[[#This Row],[Оплачено случаев]]-Таблица1[[#This Row],[План ДВН, чел.]] -> 0 | H163: =ROUND(Таблица1[[#This Row],[Оплачено случаев]]/Таблица1[[#This Row],[План ДВН, чел.]]*100,1) -> 
A164: Сентябрь | B164: ДВН | C164: ЦМБ № 1 | D164: =AX4 -> 0 | E164: =AY4 -> 0 | F164: =AZ4 -> 0 | G164: =Таблица1[[#This Row],[Оплачено случаев]]-Таблица1[[#This Row],[План ДВН, чел.]] -> 0 | H164: =ROUND(Таблица1[[#This Row],[Оплачено случаев]]/Таблица1[[#This Row],[План ДВН, чел.]]*100,1) -> 
A165: Сентябрь | B165: ДВН | C165: ЦМБ № 2 | D165: 0 | E165: 0 | F165: 0 | G165: =Таблица1[[#This Row],[Оплачено случаев]]-Таблица1[[#This Row],[План ДВН, чел.]] -> 0 | H165: =ROUND(Таблица1[[#This Row],[Оплачено случаев]]/Таблица1[[#This Row],[План ДВН, чел.]]*100,1) -> 
A166: Сентябрь | B166: ДВН | C166: ЦМБ № 3 | D166: 0 | E166: 0 | F166: 0 | G166: =Таблица1[[#This Row],[Оплачено случаев]]-Таблица1[[#This Row],[План ДВН, чел.]] -> 0 | H166: =ROUND(Таблица1[[#This Row],[Оплачено случаев]]/Таблица1[[#This Row],[План ДВН, чел.]]*100,1) -> 
A167: Сентябрь | B167: ДВН | C167: ЦМБ № 4 | D167: 0 | E167: 0 | F167: 0 | G167: =Таблица1[[#This Row],[Оплачено случаев]]-Таблица1[[#This Row],[План ДВН, чел.]] -> 0 | H167: =ROUND(Таблица1[[#This Row],[Оплачено случаев]]/Таблица1[[#This Row],[План ДВН, чел.]]*100,1) -> 
A168: Сентябрь | B168: ДВН | C168: ЦМБ № 5 | D168: 0 | E168: 0 | F168: 0 | G168: =Таблица1[[#This Row],[Оплачено случаев]]-Таблица1[[#This Row],[План ДВН, чел.]] -> 0 | H168: =ROUND(Таблица1[[#This Row],[Оплачено случаев]]/Таблица1[[#This Row],[План ДВН, чел.]]*100,1) -> 
A169: Сентябрь | B169: ДВН | C169: ЦМБ № 6 | D169: 0 | E169: 0 | F169: 0 | G169: =Таблица1[[#This Row],[Оплачено случаев]]-Таблица1[[#This Row],[План ДВН, чел.]] -> 0 | H169: =ROUND(Таблица1[[#This Row],[Оплачено случаев]]/Таблица1[[#This Row],[План ДВН, чел.]]*100,1) -> 
A170: Сентябрь | B170: ДВН | C170: КГБ № 5 | D170: 0 | E170: 0 | F170: 0 | G170: =Таблица1[[#This Row],[Оплачено случаев]]-Таблица1[[#This Row],[План ДВН, чел.]] -> 0 | H170: =ROUND(Таблица1[[#This Row],[Оплачено случаев]]/Таблица1[[#This Row],[План ДВН, чел.]]*100,1) -> 
A171: Сентябрь | B171: ДВН | C171: КГКБ № 4 | D171: 0 | E171: 0 | F171: 0 | G171: =Таблица1[[#This Row],[Оплачено случаев]]-Таблица1[[#This Row],[План ДВН, чел.]] -> 0 | H171: =ROUND(Таблица1[[#This Row],[Оплачено случаев]]/Таблица1[[#This Row],[План ДВН, чел.]]*100,1) -> 
A172: Сентябрь | B172: ДВН | C172: Городская поликлиника | D172: 0 | E172: 0 | F172: 0 | G172: =Таблица1[[#This Row],[Оплачено случаев]]-Таблица1[[#This Row],[План ДВН, чел.]] -> 0 | H172: =ROUND(Таблица1[[#This Row],[Оплачено случаев]]/Таблица1[[#This Row],[План ДВН, чел.]]*100,1) -> 
A173: Сентябрь | B173: ДВН | C173: МСЧ № 1 г. Калуги | D173: 0 | E173: 0 | F173: 0 | G173: =Таблица1[[#This Row],[Оплачено случаев]]-Таблица1[[#This Row],[План ДВН, чел.]] -> 0 | H173: =ROUND(Таблица1[[#This Row],[Оплачено случаев]]/Таблица1[[#This Row],[План ДВН, чел.]]*100,1) -> 
A174: Сентябрь | B174: ДВН | C174: МСЧ № 2 г. Калуги | D174: 0 | E174: 0 | F174: 0 | G174: =Таблица1[[#This Row],[Оплачено случаев]]-Таблица1[[#This Row],[План ДВН, чел.]] -> 0 | H174: =ROUND(Таблица1[[#This Row],[Оплачено случаев]]/Таблица1[[#This Row],[План ДВН, чел.]]*100,1) -> 
A175: Сентябрь | B175: ДВН | C175: МСЧ МВД | D175: 0 | E175: 0 | F175: 0 | G175: =Таблица1[[#This Row],[Оплачено случаев]]-Таблица1[[#This Row],[План ДВН, чел.]] -> 0 | H175: =ROUND(Таблица1[[#This Row],[Оплачено случаев]]/Таблица1[[#This Row],[План ДВН, чел.]]*100,1) -> 
A176: Сентябрь | B176: ДВН | C176: ЧУЗ "Больница "РЖД - Медицина" | D176: 0 | E176: 0 | F176: 0 | G176: =Таблица1[[#This Row],[Оплачено случаев]]-Таблица1[[#This Row],[План ДВН, чел.]] -> 0 | H176: =ROUND(Таблица1[[#This Row],[Оплачено случаев]]/Таблица1[[#This Row],[План ДВН, чел.]]*100,1) -> 
A177: Сентябрь | B177: ДВН | C177: КБ № 8 ФМБА | D177: 0 | E177: 0 | F177: 0 | G177: =Таблица1[[#This Row],[Оплачено случаев]]-Таблица1[[#This Row],[План ДВН, чел.]] -> 0 | H177: =ROUND(Таблица1[[#This Row],[Оплачено случаев]]/Таблица1[[#This Row],[План ДВН, чел.]]*100,1) -> 
A178: Сентябрь | B178: ДВН | C178: ЦРБ Бабынинского района | D178: 0 | E178: 0 | F178: 0 | G178: =Таблица1[[#This Row],[Оплачено случаев]]-Таблица1[[#This Row],[План ДВН, чел.]] -> 0 | H178: =ROUND(Таблица1[[#This Row],[Оплачено случаев]]/Таблица1[[#This Row],[План ДВН, чел.]]*100,1) -> 
A179: Сентябрь | B179: ДВН | C179: ЦРБ Боровского района | D179: 0 | E179: 0 | F179: 0 | G179: =Таблица1[[#This Row],[Оплачено случаев]]-Таблица1[[#This Row],[План ДВН, чел.]] -> 0 | H179: =ROUND(Таблица1[[#This Row],[Оплачено случаев]]/Таблица1[[#This Row],[План ДВН, чел.]]*100,1) -> 
A180: Сентябрь | B180: ДВН | C180: ЦРБ Жуковского района | D180: 0 | E180: 0 | F180: 0 | G180: =Таблица1[[#This Row],[Оплачено случаев]]-Таблица1[[#This Row],[План ДВН, чел.]] -> 0 | H180: =ROUND(Таблица1[[#This Row],[Оплачено случаев]]/Таблица1[[#This Row],[План ДВН, чел.]]*100,1) -> 
A181: Сентябрь | B181: ДВН | C181: ГП "Город Кременки" | D181: 0 | E181: 0 | F181: 0 | G181: =Таблица1[[#This Row],[Оплачено случаев]]-Таблица1[[#This Row],[План ДВН, чел.]] -> 0 | H181: =ROUND(Таблица1[[#This Row],[Оплачено случаев]]/Таблица1[[#This Row],[План ДВН, чел.]]*100,1) -> 
A182: Сентябрь | B182: ДВН | C182: ЦРБ Малоярославецкого района | D182: 0 | E182: 0 | F182: 0 | G182: =Таблица1[[#This Row],[Оплачено случаев]]-Таблица1[[#This Row],[План ДВН, чел.]] -> 0 | H182: =ROUND(Таблица1[[#This Row],[Оплачено случаев]]/Таблица1[[#This Row],[План ДВН, чел.]]*100,1) -> 
A183: Сентябрь | B183: ДВН | C183: ЦРБ Тарусского района | D183: 0 | E183: 0 | F183: 0 | G183: =Таблица1[[#This Row],[Оплачено случаев]]-Таблица1[[#This Row],[План ДВН, чел.]] -> 0 | H183: =ROUND(Таблица1[[#This Row],[Оплачено случаев]]/Таблица1[[#This Row],[План ДВН, чел.]]*100,1) -> 
A184: Октябрь | B184: ДВН | C184: ЦМБ № 1 | D184: =BC4 -> 0 | E184: =BD4 -> 0 | F184: =BE4 -> 0 | G184: =Таблица1[[#This Row],[Оплачено случаев]]-Таблица1[[#This Row],[План ДВН, чел.]] -> 0 | H184: =ROUND(Таблица1[[#This Row],[Оплачено случаев]]/Таблица1[[#This Row],[План ДВН, чел.]]*100,1) -> 
A185: Октябрь | B185: ДВН | C185: ЦМБ № 2 | D185: 0 | E185: 0 | F185: 0 | G185: =Таблица1[[#This Row],[Оплачено случаев]]-Таблица1[[#This Row],[План ДВН, чел.]] -> 0 | H185: =ROUND(Таблица1[[#This Row],[Оплачено случаев]]/Таблица1[[#This Row],[План ДВН, чел.]]*100,1) -> 
A186: Октябрь | B186: ДВН | C186: ЦМБ № 3 | D186: 0 | E186: 0 | F186: 0 | G186: =Таблица1[[#This Row],[Оплачено случаев]]-Таблица1[[#This Row],[План ДВН, чел.]] -> 0 | H186: =ROUND(Таблица1[[#This Row],[Оплачено случаев]]/Таблица1[[#This Row],[План ДВН, чел.]]*100,1) -> 
A187: Октябрь | B187: ДВН | C187: ЦМБ № 4 | D187: 0 | E187: 0 | F187: 0 | G187: =Таблица1[[#This Row],[Оплачено случаев]]-Таблица1[[#This Row],[План ДВН, чел.]] -> 0 | H187: =ROUND(Таблица1[[#This Row],[Оплачено случаев]]/Таблица1[[#This Row],[План ДВН, чел.]]*100,1) -> 
A188: Октябрь | B188: ДВН | C188: ЦМБ № 5 | D188: 0 | E188: 0 | F188: 0 | G188: =Таблица1[[#This Row],[Оплачено случаев]]-Таблица1[[#This Row],[План ДВН, чел.]] -> 0 | H188: =ROUND(Таблица1[[#This Row],[Оплачено случаев]]/Таблица1[[#This Row],[План ДВН, чел.]]*100,1) -> 
A189: Октябрь | B189: ДВН | C189: ЦМБ № 6 | D189: 0 | E189: 0 | F189: 0 | G189: =Таблица1[[#This Row],[Оплачено случаев]]-Таблица1[[#This Row],[План ДВН, чел.]] -> 0 | H189: =ROUND(Таблица1[[#This Row],[Оплачено случаев]]/Таблица1[[#This Row],[План ДВН, чел.]]*100,1) -> 
A190: Октябрь | B190: ДВН | C190: КГБ № 5 | D190: 0 | E190: 0 | F190: 0 | G190: =Таблица1[[#This Row],[Оплачено случаев]]-Таблица1[[#This Row],[План ДВН, чел.]] -> 0 | H190: =ROUND(Таблица1[[#This Row],[Оплачено случаев]]/Таблица1[[#This Row],[План ДВН, чел.]]*100,1) -> 
A191: Октябрь | B191: ДВН | C191: КГКБ № 4 | D191: 0 | E191: 0 | F191: 0 | G191: =Таблица1[[#This Row],[Оплачено случаев]]-Таблица1[[#This Row],[План ДВН, чел.]] -> 0 | H191: =ROUND(Таблица1[[#This Row],[Оплачено случаев]]/Таблица1[[#This Row],[План ДВН, чел.]]*100,1) -> 
A192: Октябрь | B192: ДВН | C192: Городская поликлиника | D192: 0 | E192: 0 | F192: 0 | G192: =Таблица1[[#This Row],[Оплачено случаев]]-Таблица1[[#This Row],[План ДВН, чел.]] -> 0 | H192: =ROUND(Таблица1[[#This Row],[Оплачено случаев]]/Таблица1[[#This Row],[План ДВН, чел.]]*100,1) -> 
A193: Октябрь | B193: ДВН | C193: МСЧ № 1 г. Калуги | D193: 0 | E193: 0 | F193: 0 | G193: =Таблица1[[#This Row],[Оплачено случаев]]-Таблица1[[#This Row],[План ДВН, чел.]] -> 0 | H193: =ROUND(Таблица1[[#This Row],[Оплачено случаев]]/Таблица1[[#This Row],[План ДВН, чел.]]*100,1) -> 
A194: Октябрь | B194: ДВН | C194: МСЧ № 2 г. Калуги | D194: 0 | E194: 0 | F194: 0 | G194: =Таблица1[[#This Row],[Оплачено случаев]]-Таблица1[[#This Row],[План ДВН, чел.]] -> 0 | H194: =ROUND(Таблица1[[#This Row],[Оплачено случаев]]/Таблица1[[#This Row],[План ДВН, чел.]]*100,1) -> 
A195: Октябрь | B195: ДВН | C195: МСЧ МВД | D195: 0 | E195: 0 | F195: 0 | G195: =Таблица1[[#This Row],[Оплачено случаев]]-Таблица1[[#This Row],[План ДВН, чел.]] -> 0 | H195: =ROUND(Таблица1[[#This Row],[Оплачено случаев]]/Таблица1[[#This Row],[План ДВН, чел.]]*100,1) -> 
A196: Октябрь | B196: ДВН | C196: ЧУЗ "Больница "РЖД - Медицина" | D196: 0 | E196: 0 | F196: 0 | G196: =Таблица1[[#This Row],[Оплачено случаев]]-Таблица1[[#This Row],[План ДВН, чел.]] -> 0 | H196: =ROUND(Таблица1[[#This Row],[Оплачено случаев]]/Таблица1[[#This Row],[План ДВН, чел.]]*100,1) -> 
A197: Октябрь | B197: ДВН | C197: КБ № 8 ФМБА | D197: 0 | E197: 0 | F197: 0 | G197: =Таблица1[[#This Row],[Оплачено случаев]]-Таблица1[[#This Row],[План ДВН, чел.]] -> 0 | H197: =ROUND(Таблица1[[#This Row],[Оплачено случаев]]/Таблица1[[#This Row],[План ДВН, чел.]]*100,1) -> 
A198: Октябрь | B198: ДВН | C198: ЦРБ Бабынинского района | D198: 0 | E198: 0 | F198: 0 | G198: =Таблица1[[#This Row],[Оплачено случаев]]-Таблица1[[#This Row],[План ДВН, чел.]] -> 0 | H198: =ROUND(Таблица1[[#This Row],[Оплачено случаев]]/Таблица1[[#This Row],[План ДВН, чел.]]*100,1) -> 
A199: Октябрь | B199: ДВН | C199: ЦРБ Боровского района | D199: 0 | E199: 0 | F199: 0 | G199: =Таблица1[[#This Row],[Оплачено случаев]]-Таблица1[[#This Row],[План ДВН, чел.]] -> 0 | H199: =ROUND(Таблица1[[#This Row],[Оплачено случаев]]/Таблица1[[#This Row],[План ДВН, чел.]]*100,1) -> 
A200: Октябрь | B200: ДВН | C200: ЦРБ Жуковского района | D200: 0 | E200: 0 | F200: 0 | G200: =Таблица1[[#This Row],[Оплачено случаев]]-Таблица1[[#This Row],[План ДВН, чел.]] -> 0 | H200: =ROUND(Таблица1[[#This Row],[Оплачено случаев]]/Таблица1[[#This Row],[План ДВН, чел.]]*100,1) -> 
... 43 more rows

Sheet Все МО (hidden)
A1: Месяц | B1: Март
A3: Названия строк | B3: Оплачено случаев | C3: План ДВН, чел.
A4: МСЧ МВД | B4: 0 | C4: 0
A5: МСЧ № 2 г. Калуги | B5: 57 | C5: 12
A6: ГП "Город Кременки" | B6: 213 | C6: 280
A7: ЧУЗ "Больница "РЖД - Медицина" | B7: 256 | C7: 195
A8: ЦМБ № 4 | B8: 325 | C8: 383
A9: ЦРБ Тарусского района | B9: 378 | C9: 362
A10: МСЧ № 1 г. Калуги | B10: 396 | C10: 200
A11: ЦМБ № 3 | B11: 527 | C11: 852
A12: ЦРБ Бабынинского района | B12: 610 | C12: 464
A13: ЦРБ Жуковского района | B13: 663 | C13: 490
A14: ЦРБ Малоярославецкого района | B14: 1044 | C14: 964
A15: ЦМБ № 5 | B15: 1594 | C15: 973
A16: ЦМБ № 1 | B16: 1606 | C16: 1107
A17: ЦМБ № 2 | B17: 1931 | C17: 2065
A18: ЦРБ Боровского района | B18: 2050 | C18: 1280
A19: ЦМБ № 6 | B19: 2118 | C19: 1500
A20: Городская поликлиника | B20: 2139 | C20: 1506
A21: КГБ № 5 | B21: 4056 | C21: 3900
A22: КГКБ № 4 | B22: 4229 | C22: 3193
A23: КБ № 8 ФМБА | B23: 4585 | C23: 4500
A24: Общий итог | B24: 28777 | C24: 24226

Sheet 10 лучших (hidden)
A1: Месяц | B1: Март
A3: Названия строк | B3: % выполнения
A4: ЦРБ Бабынинского района | B4: 131.5
A5: КГКБ № 4 | B5: 132.4
A6: ЦРБ Жуковского района | B6: 135.3
A7: ЦМБ № 6 | B7: 141.2
A8: Городская поликлиника | B8: 142
A9: ЦМБ № 1 | B9: 145.1
A10: ЦРБ Боровского района | B10: 160.2
A11: ЦМБ № 5 | B11: 163.8
A12: МСЧ № 1 г. Калуги | B12: 198
A13: МСЧ № 2 г. Калуги | B13: 475
A14: Общий итог | B14: 182.45

Sheet 10 худших (hidden)
A1: Месяц | B1: Март
A3: Названия строк | B3: % выполнения
A4: ЦМБ № 3 | B4: 61.9
A5: ГП "Город Кременки" | B5: 76.1
A6: ЦМБ № 4 | B6: 84.9
A7: ЦМБ № 2 | B7: 93.5
A8: КБ № 8 ФМБА | B8: 101.9
A9: КГБ № 5 | B9: 104
A10: ЦРБ Тарусского района | B10: 104.4
A11: ЦРБ Малоярославецкого района | B11: 108.3
A12: ЧУЗ "Больница "РЖД - Медицина" | B12: 131.3
A13: ЦРБ Бабынинского района | B13: 131.5
A14: Общий итог | B14: 99.78

Sheet Помесячно по МО (hidden)
A1: Выполнение ДВН
A3: Названия строк | B3: Оплачено случаев | C3: План ДВН, чел. | D3: Отклонение
A4: Январь | B4: 2037 | C4: 1449 | D4: 588
A5: Февраль | B5: 2589 | C5: 1506 | D5: 1083
A6: Март | B6: 2139 | C6: 1506 | D6: 633
A7: Апрель | B7: 0 | C7: 0 | D7: 0
A8: Май | B8: 0 | C8: 0 | D8: 0
A9: Июнь | B9: 0 | C9: 0 | D9: 0
A10: Июль | B10: 0 | C10: 0 | D10: 0
A11: Август | B11: 0 | C11: 0 | D11: 0
A12: Сентябрь | B12: 0 | C12: 0 | D12: 0
A13: Октябрь | B13: 0 | C13: 0 | D13: 0
A14: Ноябрь | B14: 0 | C14: 0 | D14: 0
A15: Декабрь | B15: 0 | C15: 0 | D15: 0
A16: Общий итог | B16: 6765 | C16: 4461 | D16: 2304

Sheet Дашборд ДВН
A2: ДИСПАНСЕРИЗАЦИЯ ВЗРОСЛОГО НАСЕЛЕНИЯ В 2024 ГОДУ
